{"text_format":"1","workbook":"xlsx","n_sheets":2,"sheets":["FilterThis","Criteria"],"not_rendered":{"charts":0,"images":1,"macros":1,"external_links":0,"defined_names":8,"comments":0,"pivot_tables":0},"unopened":[],"bounds":{"document_bytes":16777216,"sheet_cells":100000,"rows_first":2000,"rows_last":500,"rows_between":2000,"halvings":0,"cell_chars":16384,"cell_head_chars":4096},"cells_cut":0,"cells_raw":0,"read":"whole","date_system":"1900"}

{"sheet":"FilterThis","index":0,"n_rows":201,"n_cols":16,"rows_kept":201,"cut":false,"hidden":false,"merged":[]}
[]
[]
[]
[]
[]
[null,"Table1",null,null,null,null,null,null,"Table3",null,null,null,null,null,null,"Manual:"]
[null,"Loc","Desc","Supplier","Project","Group","Section",null,"Loc","Desc","Supplier","Project","Group","Section"]
[null,{"$f":"INDEX(States,RANDBETWEEN(1,50))","v":"KY"},{"$f":"INDEX(Cntry,RANDBETWEEN(1,35))&\", \"&INDEX(Cntry,RANDBETWEEN(1,35))&\", \"&INDEX(Cntry,RANDBETWEEN(1,35))&\", \"&INDEX(Cntry,RANDBETWEEN(1,35))&\", \"&INDEX(Cntry,RANDBETWEEN(1,35))","v":"ARG, EGY, AUS, CZE, HUN"},{"$f":"INDEX(LstNm,RANDBETWEEN(1,ROWS(LstNm)))","v":"Simpson"},{"$f":"INDEX(UpK,RANDBETWEEN(1,16))&INDEX(vowel,RANDBETWEEN(1,5))&INDEX(LoK,RANDBETWEEN(1,14))","v":"Fen"},{"$f":"INDEX(UpK,RANDBETWEEN(1,16))&INDEX(UpK,RANDBETWEEN(1,16))","v":"GP"},{"$f":"RANDBETWEEN(10,99)","v":59},null,"AZ","NED, RUS, GBR, GRE, FIN","Reed","Gac","FW",62]
[null,{"$f":"INDEX(States,RANDBETWEEN(1,50))","v":"MS"},{"$f":"INDEX(Cntry,RANDBETWEEN(1,35))&\", \"&INDEX(Cntry,RANDBETWEEN(1,35))&\", \"&INDEX(Cntry,RANDBETWEEN(1,35))&\", \"&INDEX(Cntry,RANDBETWEEN(1,35))&\", \"&INDEX(Cntry,RANDBETWEEN(1,35))","v":"ITA, CAN, CHI, SWE, ISR"},{"$f":"INDEX(LstNm,RANDBETWEEN(1,ROWS(LstNm)))","v":"Hunter"},{"$f":"INDEX(UpK,RANDBETWEEN(1,16))&INDEX(vowel,RANDBETWEEN(1,5))&INDEX(LoK,RANDBETWEEN(1,14))","v":"Fog"},{"$f":"INDEX(UpK,RANDBETWEEN(1,16))&INDEX(UpK,RANDBETWEEN(1,16))","v":"WP"},{"$f":"RANDBETWEEN(10,99)","v":88},null,"AZ","BEL, SWE, GER, EGY, SUI","Bailey","Dar","JS",75]
[null,{"$f":"INDEX(States,RANDBETWEEN(1,50))","v":"MD"},{"$f":"INDEX(Cntry,RANDBETWEEN(1,35))&\", \"&INDEX(Cntry,RANDBETWEEN(1,35))&\", \"&INDEX(Cntry,RANDBETWEEN(1,35))&\", \"&INDEX(Cntry,RANDBETWEEN(1,35))&\", \"&INDEX(Cntry,RANDBETWEEN(1,35))","v":"SUI, NOR, EGY, NED, BEL"},{"$f":"INDEX(LstNm,RANDBETWEEN(1,ROWS(LstNm)))","v":"Perry"},{"$f":"INDEX(UpK,RANDBETWEEN(1,16))&INDEX(vowel,RANDBETWEEN(1,5))&INDEX(LoK,RANDBETWEEN(1,14))","v":"Vav"},{"$f":"INDEX(UpK,RANDBETWEEN(1,16))&INDEX(UpK,RANDBETWEEN(1,16))","v":"DN"},48,null,"AZ","IRI, GER, CHN, AUS, POR","Woods","Seb","KD",59]
[null,{"$f":"INDEX(States,RANDBETWEEN(1,50))","v":"MN"},{"$f":"INDEX(Cntry,RANDBETWEEN(1,35))&\", \"&INDEX(Cntry,RANDBETWEEN(1,35))&\", \"&INDEX(Cntry,RANDBETWEEN(1,35))&\", \"&INDEX(Cntry,RANDBETWEEN(1,35))&\", \"&INDEX(Cntry,RANDBETWEEN(1,35))","v":"GER, CHI, MEX, CAN, NED"},{"$f":"INDEX(LstNm,RANDBETWEEN(1,ROWS(LstNm)))","v":"Butler"},{"$f":"INDEX(UpK,RANDBETWEEN(1,16))&INDEX(vowel,RANDBETWEEN(1,5))&INDEX(LoK,RANDBETWEEN(1,14))","v":"Niv"},{"$f":"INDEX(UpK,RANDBETWEEN(1,16))&INDEX(UpK,RANDBETWEEN(1,16))","v":"HW"},{"$f":"RANDBETWEEN(10,99)","v":43},null,"AZ","ITA, JPN, ISR, GBR, FIN","Bailey","Suc","BV",55]
[null,{"$f":"INDEX(States,RANDBETWEEN(1,50))","v":"TN"},{"$f":"INDEX(Cntry,RANDBETWEEN(1,35))&\", \"&INDEX(Cntry,RANDBETWEEN(1,35))&\", \"&INDEX(Cntry,RANDBETWEEN(1,35))&\", \"&INDEX(Cntry,RANDBETWEEN(1,35))&\", \"&INDEX(Cntry,RANDBETWEEN(1,35))","v":"AUT, GBR, SUI, MEX, GBR"},{"$f":"INDEX(LstNm,RANDBETWEEN(1,ROWS(LstNm)))","v":"Simmons"},{"$f":"INDEX(UpK,RANDBETWEEN(1,16))&INDEX(vowel,RANDBETWEEN(1,5))&INDEX(LoK,RANDBETWEEN(1,14))","v":"Kov"},{"$f":"INDEX(UpK,RANDBETWEEN(1,16))&INDEX(UpK,RANDBETWEEN(1,16))","v":"TF"},11]
[null,{"$f":"INDEX(States,RANDBETWEEN(1,50))","v":"TN"},{"$f":"INDEX(Cntry,RANDBETWEEN(1,35))&\", \"&INDEX(Cntry,RANDBETWEEN(1,35))&\", \"&INDEX(Cntry,RANDBETWEEN(1,35))&\", \"&INDEX(Cntry,RANDBETWEEN(1,35))&\", \"&INDEX(Cntry,RANDBETWEEN(1,35))","v":"ARG, SUI, IRL, BEL, HUN"},{"$f":"INDEX(LstNm,RANDBETWEEN(1,ROWS(LstNm)))","v":"Garcia"},{"$f":"INDEX(UpK,RANDBETWEEN(1,16))&INDEX(vowel,RANDBETWEEN(1,5))&INDEX(LoK,RANDBETWEEN(1,14))","v":"Gic"},{"$f":"INDEX(UpK,RANDBETWEEN(1,16))&INDEX(UpK,RANDBETWEEN(1,16))","v":"FF"},26]
[null,{"$f":"INDEX(States,RANDBETWEEN(1,50))","v":"VA"},{"$f":"INDEX(Cntry,RANDBETWEEN(1,35))&\", \"&INDEX(Cntry,RANDBETWEEN(1,35))&\", \"&INDEX(Cntry,RANDBETWEEN(1,35))&\", \"&INDEX(Cntry,RANDBETWEEN(1,35))&\", \"&INDEX(Cntry,RANDBETWEEN(1,35))","v":"AUT, ARG, POL, POR, ESP"},{"$f":"INDEX(LstNm,RANDBETWEEN(1,ROWS(LstNm)))","v":"Johnson"},{"$f":"INDEX(UpK,RANDBETWEEN(1,16))&INDEX(vowel,RANDBETWEEN(1,5))&INDEX(LoK,RANDBETWEEN(1,14))","v":"Dob"},{"$f":"INDEX(UpK,RANDBETWEEN(1,16))&INDEX(UpK,RANDBETWEEN(1,16))","v":"NH"},58]
[null,{"$f":"INDEX(States,RANDBETWEEN(1,50))","v":"AR"},{"$f":"INDEX(Cntry,RANDBETWEEN(1,35))&\", \"&INDEX(Cntry,RANDBETWEEN(1,35))&\", \"&INDEX(Cntry,RANDBETWEEN(1,35))&\", \"&INDEX(Cntry,RANDBETWEEN(1,35))&\", \"&INDEX(Cntry,RANDBETWEEN(1,35))","v":"ISR, EGY, GER, POL, SWE"},{"$f":"INDEX(LstNm,RANDBETWEEN(1,ROWS(LstNm)))","v":"Morris"},{"$f":"INDEX(UpK,RANDBETWEEN(1,16))&INDEX(vowel,RANDBETWEEN(1,5))&INDEX(LoK,RANDBETWEEN(1,14))","v":"Guf"},{"$f":"INDEX(UpK,RANDBETWEEN(1,16))&INDEX(UpK,RANDBETWEEN(1,16))","v":"JR"},52]
[null,{"$f":"INDEX(States,RANDBETWEEN(1,50))","v":"LA"},{"$f":"INDEX(Cntry,RANDBETWEEN(1,35))&\", \"&INDEX(Cntry,RANDBETWEEN(1,35))&\", \"&INDEX(Cntry,RANDBETWEEN(1,35))&\", \"&INDEX(Cntry,RANDBETWEEN(1,35))&\", \"&INDEX(Cntry,RANDBETWEEN(1,35))","v":"IRL, CHI, IRI, GBR, CHN"},{"$f":"INDEX(LstNm,RANDBETWEEN(1,ROWS(LstNm)))","v":"Davis"},{"$f":"INDEX(UpK,RANDBETWEEN(1,16))&INDEX(vowel,RANDBETWEEN(1,5))&INDEX(LoK,RANDBETWEEN(1,14))","v":"Nur"},{"$f":"INDEX(UpK,RANDBETWEEN(1,16))&INDEX(UpK,RANDBETWEEN(1,16))","v":"GT"},62]
[null,{"$f":"INDEX(States,RANDBETWEEN(1,50))","v":"LA"},{"$f":"INDEX(Cntry,RANDBETWEEN(1,35))&\", \"&INDEX(Cntry,RANDBETWEEN(1,35))&\", \"&INDEX(Cntry,RANDBETWEEN(1,35))&\", \"&INDEX(Cntry,RANDBETWEEN(1,35))&\", \"&INDEX(Cntry,RANDBETWEEN(1,35))","v":"JPN, NOR, ARG, EGY, CAN"},{"$f":"INDEX(LstNm,RANDBETWEEN(1,ROWS(LstNm)))","v":"Murphy"},{"$f":"INDEX(UpK,RANDBETWEEN(1,16))&INDEX(vowel,RANDBETWEEN(1,5))&INDEX(LoK,RANDBETWEEN(1,14))","v":"Bec"},{"$f":"INDEX(UpK,RANDBETWEEN(1,16))&INDEX(UpK,RANDBETWEEN(1,16))","v":"HW"},31]
[null,{"$f":"INDEX(States,RANDBETWEEN(1,50))","v":"HI"},{"$f":"INDEX(Cntry,RANDBETWEEN(1,35))&\", \"&INDEX(Cntry,RANDBETWEEN(1,35))&\", \"&INDEX(Cntry,RANDBETWEEN(1,35))&\", \"&INDEX(Cntry,RANDBETWEEN(1,35))&\", \"&INDEX(Cntry,RANDBETWEEN(1,35))","v":"FIN, GRE, POR, POR, ITA"},{"$f":"INDEX(LstNm,RANDBETWEEN(1,ROWS(LstNm)))","v":"Porter"},{"$f":"INDEX(UpK,RANDBETWEEN(1,16))&INDEX(vowel,RANDBETWEEN(1,5))&INDEX(LoK,RANDBETWEEN(1,14))","v":"Gev"},{"$f":"INDEX(UpK,RANDBETWEEN(1,16))&INDEX(UpK,RANDBETWEEN(1,16))","v":"RD"},47]
[null,{"$f":"INDEX(States,RANDBETWEEN(1,50))","v":"MO"},{"$f":"INDEX(Cntry,RANDBETWEEN(1,35))&\", \"&INDEX(Cntry,RANDBETWEEN(1,35))&\", \"&INDEX(Cntry,RANDBETWEEN(1,35))&\", \"&INDEX(Cntry,RANDBETWEEN(1,35))&\", \"&INDEX(Cntry,RANDBETWEEN(1,35))","v":"DEN, GRE, IRI, INA, SWE"},{"$f":"INDEX(LstNm,RANDBETWEEN(1,ROWS(LstNm)))","v":"Griffin"},{"$f":"INDEX(UpK,RANDBETWEEN(1,16))&INDEX(vowel,RANDBETWEEN(1,5))&INDEX(LoK,RANDBETWEEN(1,14))","v":"Jer"},{"$f":"INDEX(UpK,RANDBETWEEN(1,16))&INDEX(UpK,RANDBETWEEN(1,16))","v":"LT"},83]
[null,{"$f":"INDEX(States,RANDBETWEEN(1,50))","v":"OR"},{"$f":"INDEX(Cntry,RANDBETWEEN(1,35))&\", \"&INDEX(Cntry,RANDBETWEEN(1,35))&\", \"&INDEX(Cntry,RANDBETWEEN(1,35))&\", \"&INDEX(Cntry,RANDBETWEEN(1,35))&\", \"&INDEX(Cntry,RANDBETWEEN(1,35))","v":"CZE, RUS, ESP, CZE, BRA"},{"$f":"INDEX(LstNm,RANDBETWEEN(1,ROWS(LstNm)))","v":"Moore"},{"$f":"INDEX(UpK,RANDBETWEEN(1,16))&INDEX(vowel,RANDBETWEEN(1,5))&INDEX(LoK,RANDBETWEEN(1,14))","v":"Mun"},{"$f":"INDEX(UpK,RANDBETWEEN(1,16))&INDEX(UpK,RANDBETWEEN(1,16))","v":"GM"},95]
[null,{"$f":"INDEX(States,RANDBETWEEN(1,50))","v":"ID"},{"$f":"INDEX(Cntry,RANDBETWEEN(1,35))&\", \"&INDEX(Cntry,RANDBETWEEN(1,35))&\", \"&INDEX(Cntry,RANDBETWEEN(1,35))&\", \"&INDEX(Cntry,RANDBETWEEN(1,35))&\", \"&INDEX(Cntry,RANDBETWEEN(1,35))","v":"AUT, ISL, AUS, IRI, EGY"},{"$f":"INDEX(LstNm,RANDBETWEEN(1,ROWS(LstNm)))","v":"Garcia"},{"$f":"INDEX(UpK,RANDBETWEEN(1,16))&INDEX(vowel,RANDBETWEEN(1,5))&INDEX(LoK,RANDBETWEEN(1,14))","v":"Duh"},{"$f":"INDEX(UpK,RANDBETWEEN(1,16))&INDEX(UpK,RANDBETWEEN(1,16))","v":"SD"},92]
[null,{"$f":"INDEX(States,RANDBETWEEN(1,50))","v":"IN"},{"$f":"INDEX(Cntry,RANDBETWEEN(1,35))&\", \"&INDEX(Cntry,RANDBETWEEN(1,35))&\", \"&INDEX(Cntry,RANDBETWEEN(1,35))&\", \"&INDEX(Cntry,RANDBETWEEN(1,35))&\", \"&INDEX(Cntry,RANDBETWEEN(1,35))","v":"GER, NED, CHN, CZE, HUN"},{"$f":"INDEX(LstNm,RANDBETWEEN(1,ROWS(LstNm)))","v":"Hunter"},{"$f":"INDEX(UpK,RANDBETWEEN(1,16))&INDEX(vowel,RANDBETWEEN(1,5))&INDEX(LoK,RANDBETWEEN(1,14))","v":"Kat"},{"$f":"INDEX(UpK,RANDBETWEEN(1,16))&INDEX(UpK,RANDBETWEEN(1,16))","v":"DT"},58]
[null,{"$f":"INDEX(States,RANDBETWEEN(1,50))","v":"IA"},{"$f":"INDEX(Cntry,RANDBETWEEN(1,35))&\", \"&INDEX(Cntry,RANDBETWEEN(1,35))&\", \"&INDEX(Cntry,RANDBETWEEN(1,35))&\", \"&INDEX(Cntry,RANDBETWEEN(1,35))&\", \"&INDEX(Cntry,RANDBETWEEN(1,35))","v":"AUT, BRA, FRA, CZE, NOR"},{"$f":"INDEX(LstNm,RANDBETWEEN(1,ROWS(LstNm)))","v":"Morales"},{"$f":"INDEX(UpK,RANDBETWEEN(1,16))&INDEX(vowel,RANDBETWEEN(1,5))&INDEX(LoK,RANDBETWEEN(1,14))","v":"Fum"},{"$f":"INDEX(UpK,RANDBETWEEN(1,16))&INDEX(UpK,RANDBETWEEN(1,16))","v":"WK"},72]
[null,{"$f":"INDEX(States,RANDBETWEEN(1,50))","v":"NY"},{"$f":"INDEX(Cntry,RANDBETWEEN(1,35))&\", \"&INDEX(Cntry,RANDBETWEEN(1,35))&\", \"&INDEX(Cntry,RANDBETWEEN(1,35))&\", \"&INDEX(Cntry,RANDBETWEEN(1,35))&\", \"&INDEX(Cntry,RANDBETWEEN(1,35))","v":"ISL, BEL, ISL, ARG, EGY"},{"$f":"INDEX(LstNm,RANDBETWEEN(1,ROWS(LstNm)))","v":"Rivera"},{"$f":"INDEX(UpK,RANDBETWEEN(1,16))&INDEX(vowel,RANDBETWEEN(1,5))&INDEX(LoK,RANDBETWEEN(1,14))","v":"Jod"},{"$f":"INDEX(UpK,RANDBETWEEN(1,16))&INDEX(UpK,RANDBETWEEN(1,16))","v":"SV"},60]
[null,{"$f":"INDEX(States,RANDBETWEEN(1,50))","v":"MS"},{"$f":"INDEX(Cntry,RANDBETWEEN(1,35))&\", \"&INDEX(Cntry,RANDBETWEEN(1,35))&\", \"&INDEX(Cntry,RANDBETWEEN(1,35))&\", \"&INDEX(Cntry,RANDBETWEEN(1,35))&\", \"&INDEX(Cntry,RANDBETWEEN(1,35))","v":"BEL, IRL, FIN, AUT, RUS"},{"$f":"INDEX(LstNm,RANDBETWEEN(1,ROWS(LstNm)))","v":"Diaz"},{"$f":"INDEX(UpK,RANDBETWEEN(1,16))&INDEX(vowel,RANDBETWEEN(1,5))&INDEX(LoK,RANDBETWEEN(1,14))","v":"Fop"},{"$f":"INDEX(UpK,RANDBETWEEN(1,16))&INDEX(UpK,RANDBETWEEN(1,16))","v":"WG"},73]
[null,{"$f":"INDEX(States,RANDBETWEEN(1,50))","v":"WI"},{"$f":"INDEX(Cntry,RANDBETWEEN(1,35))&\", \"&INDEX(Cntry,RANDBETWEEN(1,35))&\", \"&INDEX(Cntry,RANDBETWEEN(1,35))&\", \"&INDEX(Cntry,RANDBETWEEN(1,35))&\", \"&INDEX(Cntry,RANDBETWEEN(1,35))","v":"ARG, IRL, IRL, IRL, ARG"},{"$f":"INDEX(LstNm,RANDBETWEEN(1,ROWS(LstNm)))","v":"Edwards"},{"$f":"INDEX(UpK,RANDBETWEEN(1,16))&INDEX(vowel,RANDBETWEEN(1,5))&INDEX(LoK,RANDBETWEEN(1,14))","v":"Joh"},{"$f":"INDEX(UpK,RANDBETWEEN(1,16))&INDEX(UpK,RANDBETWEEN(1,16))","v":"TM"},46]
[null,{"$f":"INDEX(States,RANDBETWEEN(1,50))","v":"AR"},{"$f":"INDEX(Cntry,RANDBETWEEN(1,35))&\", \"&INDEX(Cntry,RANDBETWEEN(1,35))&\", \"&INDEX(Cntry,RANDBETWEEN(1,35))&\", \"&INDEX(Cntry,RANDBETWEEN(1,35))&\", \"&INDEX(Cntry,RANDBETWEEN(1,35))","v":"EGY, FRA, INA, INA, JPN"},{"$f":"INDEX(LstNm,RANDBETWEEN(1,ROWS(LstNm)))","v":"Wilson"},{"$f":"INDEX(UpK,RANDBETWEEN(1,16))&INDEX(vowel,RANDBETWEEN(1,5))&INDEX(LoK,RANDBETWEEN(1,14))","v":"Pun"},{"$f":"INDEX(UpK,RANDBETWEEN(1,16))&INDEX(UpK,RANDBETWEEN(1,16))","v":"WL"},15]
[null,{"$f":"INDEX(States,RANDBETWEEN(1,50))","v":"WI"},{"$f":"INDEX(Cntry,RANDBETWEEN(1,35))&\", \"&INDEX(Cntry,RANDBETWEEN(1,35))&\", \"&INDEX(Cntry,RANDBETWEEN(1,35))&\", \"&INDEX(Cntry,RANDBETWEEN(1,35))&\", \"&INDEX(Cntry,RANDBETWEEN(1,35))","v":"SWE, IRL, ISR, ARG, ITA"},{"$f":"INDEX(LstNm,RANDBETWEEN(1,ROWS(LstNm)))","v":"Kelly"},{"$f":"INDEX(UpK,RANDBETWEEN(1,16))&INDEX(vowel,RANDBETWEEN(1,5))&INDEX(LoK,RANDBETWEEN(1,14))","v":"Jaf"},{"$f":"INDEX(UpK,RANDBETWEEN(1,16))&INDEX(UpK,RANDBETWEEN(1,16))","v":"NL"},21]
[null,{"$f":"INDEX(States,RANDBETWEEN(1,50))","v":"UT"},{"$f":"INDEX(Cntry,RANDBETWEEN(1,35))&\", \"&INDEX(Cntry,RANDBETWEEN(1,35))&\", \"&INDEX(Cntry,RANDBETWEEN(1,35))&\", \"&INDEX(Cntry,RANDBETWEEN(1,35))&\", \"&INDEX(Cntry,RANDBETWEEN(1,35))","v":"RUS, FRA, ESP, ISL, GRE"},{"$f":"INDEX(LstNm,RANDBETWEEN(1,ROWS(LstNm)))","v":"Allen"},{"$f":"INDEX(UpK,RANDBETWEEN(1,16))&INDEX(vowel,RANDBETWEEN(1,5))&INDEX(LoK,RANDBETWEEN(1,14))","v":"Fag"},{"$f":"INDEX(UpK,RANDBETWEEN(1,16))&INDEX(UpK,RANDBETWEEN(1,16))","v":"RD"},37]
[null,{"$f":"INDEX(States,RANDBETWEEN(1,50))","v":"ID"},{"$f":"INDEX(Cntry,RANDBETWEEN(1,35))&\", \"&INDEX(Cntry,RANDBETWEEN(1,35))&\", \"&INDEX(Cntry,RANDBETWEEN(1,35))&\", \"&INDEX(Cntry,RANDBETWEEN(1,35))&\", \"&INDEX(Cntry,RANDBETWEEN(1,35))","v":"ISR, IRI, GBR, HUN, IRI"},{"$f":"INDEX(LstNm,RANDBETWEEN(1,ROWS(LstNm)))","v":"Henry"},{"$f":"INDEX(UpK,RANDBETWEEN(1,16))&INDEX(vowel,RANDBETWEEN(1,5))&INDEX(LoK,RANDBETWEEN(1,14))","v":"Hop"},{"$f":"INDEX(UpK,RANDBETWEEN(1,16))&INDEX(UpK,RANDBETWEEN(1,16))","v":"NF"},92]
[null,{"$f":"INDEX(States,RANDBETWEEN(1,50))","v":"NM"},{"$f":"INDEX(Cntry,RANDBETWEEN(1,35))&\", \"&INDEX(Cntry,RANDBETWEEN(1,35))&\", \"&INDEX(Cntry,RANDBETWEEN(1,35))&\", \"&INDEX(Cntry,RANDBETWEEN(1,35))&\", \"&INDEX(Cntry,RANDBETWEEN(1,35))","v":"DEN, IRL, GER, HUN, GER"},{"$f":"INDEX(LstNm,RANDBETWEEN(1,ROWS(LstNm)))","v":"Morgan"},{"$f":"INDEX(UpK,RANDBETWEEN(1,16))&INDEX(vowel,RANDBETWEEN(1,5))&INDEX(LoK,RANDBETWEEN(1,14))","v":"Heh"},{"$f":"INDEX(UpK,RANDBETWEEN(1,16))&INDEX(UpK,RANDBETWEEN(1,16))","v":"FS"},84]
[null,{"$f":"INDEX(States,RANDBETWEEN(1,50))","v":"GA"},{"$f":"INDEX(Cntry,RANDBETWEEN(1,35))&\", \"&INDEX(Cntry,RANDBETWEEN(1,35))&\", \"&INDEX(Cntry,RANDBETWEEN(1,35))&\", \"&INDEX(Cntry,RANDBETWEEN(1,35))&\", \"&INDEX(Cntry,RANDBETWEEN(1,35))","v":"RUS, CAN, IRL, FIN, ISL"},{"$f":"INDEX(LstNm,RANDBETWEEN(1,ROWS(LstNm)))","v":"Ross"},{"$f":"INDEX(UpK,RANDBETWEEN(1,16))&INDEX(vowel,RANDBETWEEN(1,5))&INDEX(LoK,RANDBETWEEN(1,14))","v":"Sep"},{"$f":"INDEX(UpK,RANDBETWEEN(1,16))&INDEX(UpK,RANDBETWEEN(1,16))","v":"PF"},86]
[null,{"$f":"INDEX(States,RANDBETWEEN(1,50))","v":"WY"},{"$f":"INDEX(Cntry,RANDBETWEEN(1,35))&\", \"&INDEX(Cntry,RANDBETWEEN(1,35))&\", \"&INDEX(Cntry,RANDBETWEEN(1,35))&\", \"&INDEX(Cntry,RANDBETWEEN(1,35))&\", \"&INDEX(Cntry,RANDBETWEEN(1,35))","v":"FIN, BEL, IND, SWE, AUT"},{"$f":"INDEX(LstNm,RANDBETWEEN(1,ROWS(LstNm)))","v":"Wright"},{"$f":"INDEX(UpK,RANDBETWEEN(1,16))&INDEX(vowel,RANDBETWEEN(1,5))&INDEX(LoK,RANDBETWEEN(1,14))","v":"Kod"},{"$f":"INDEX(UpK,RANDBETWEEN(1,16))&INDEX(UpK,RANDBETWEEN(1,16))","v":"TM"},96]
[null,{"$f":"INDEX(States,RANDBETWEEN(1,50))","v":"ND"},{"$f":"INDEX(Cntry,RANDBETWEEN(1,35))&\", \"&INDEX(Cntry,RANDBETWEEN(1,35))&\", \"&INDEX(Cntry,RANDBETWEEN(1,35))&\", \"&INDEX(Cntry,RANDBETWEEN(1,35))&\", \"&INDEX(Cntry,RANDBETWEEN(1,35))","v":"SWE, ESP, GER, GRE, ESP"},{"$f":"INDEX(LstNm,RANDBETWEEN(1,ROWS(LstNm)))","v":"Campbell"},{"$f":"INDEX(UpK,RANDBETWEEN(1,16))&INDEX(vowel,RANDBETWEEN(1,5))&INDEX(LoK,RANDBETWEEN(1,14))","v":"Sir"},{"$f":"INDEX(UpK,RANDBETWEEN(1,16))&INDEX(UpK,RANDBETWEEN(1,16))","v":"RK"},93]
[null,{"$f":"INDEX(States,RANDBETWEEN(1,50))","v":"MD"},{"$f":"INDEX(Cntry,RANDBETWEEN(1,35))&\", \"&INDEX(Cntry,RANDBETWEEN(1,35))&\", \"&INDEX(Cntry,RANDBETWEEN(1,35))&\", \"&INDEX(Cntry,RANDBETWEEN(1,35))&\", \"&INDEX(Cntry,RANDBETWEEN(1,35))","v":"GER, ISL, AUT, CHN, IRI"},{"$f":"INDEX(LstNm,RANDBETWEEN(1,ROWS(LstNm)))","v":"Powell"},{"$f":"INDEX(UpK,RANDBETWEEN(1,16))&INDEX(vowel,RANDBETWEEN(1,5))&INDEX(LoK,RANDBETWEEN(1,14))","v":"Pat"},{"$f":"INDEX(UpK,RANDBETWEEN(1,16))&INDEX(UpK,RANDBETWEEN(1,16))","v":"FS"},26]
[null,{"$f":"INDEX(States,RANDBETWEEN(1,50))","v":"LA"},{"$f":"INDEX(Cntry,RANDBETWEEN(1,35))&\", \"&INDEX(Cntry,RANDBETWEEN(1,35))&\", \"&INDEX(Cntry,RANDBETWEEN(1,35))&\", \"&INDEX(Cntry,RANDBETWEEN(1,35))&\", \"&INDEX(Cntry,RANDBETWEEN(1,35))","v":"POR, FRA, CZE, DEN, BEL"},{"$f":"INDEX(LstNm,RANDBETWEEN(1,ROWS(LstNm)))","v":"Jackson"},{"$f":"INDEX(UpK,RANDBETWEEN(1,16))&INDEX(vowel,RANDBETWEEN(1,5))&INDEX(LoK,RANDBETWEEN(1,14))","v":"Ran"},{"$f":"INDEX(UpK,RANDBETWEEN(1,16))&INDEX(UpK,RANDBETWEEN(1,16))","v":"BV"},76]
[null,{"$f":"INDEX(States,RANDBETWEEN(1,50))","v":"TX"},{"$f":"INDEX(Cntry,RANDBETWEEN(1,35))&\", \"&INDEX(Cntry,RANDBETWEEN(1,35))&\", \"&INDEX(Cntry,RANDBETWEEN(1,35))&\", \"&INDEX(Cntry,RANDBETWEEN(1,35))&\", \"&INDEX(Cntry,RANDBETWEEN(1,35))","v":"AUT, MEX, RUS, HUN, HUN"},{"$f":"INDEX(LstNm,RANDBETWEEN(1,ROWS(LstNm)))","v":"Butler"},{"$f":"INDEX(UpK,RANDBETWEEN(1,16))&INDEX(vowel,RANDBETWEEN(1,5))&INDEX(LoK,RANDBETWEEN(1,14))","v":"Tek"},{"$f":"INDEX(UpK,RANDBETWEEN(1,16))&INDEX(UpK,RANDBETWEEN(1,16))","v":"GP"},30]
[null,{"$f":"INDEX(States,RANDBETWEEN(1,50))","v":"SD"},{"$f":"INDEX(Cntry,RANDBETWEEN(1,35))&\", \"&INDEX(Cntry,RANDBETWEEN(1,35))&\", \"&INDEX(Cntry,RANDBETWEEN(1,35))&\", \"&INDEX(Cntry,RANDBETWEEN(1,35))&\", \"&INDEX(Cntry,RANDBETWEEN(1,35))","v":"SWE, CHI, ISR, DEN, ISL"},{"$f":"INDEX(LstNm,RANDBETWEEN(1,ROWS(LstNm)))","v":"Perez"},{"$f":"INDEX(UpK,RANDBETWEEN(1,16))&INDEX(vowel,RANDBETWEEN(1,5))&INDEX(LoK,RANDBETWEEN(1,14))","v":"Hat"},{"$f":"INDEX(UpK,RANDBETWEEN(1,16))&INDEX(UpK,RANDBETWEEN(1,16))","v":"ND"},84]
[null,{"$f":"INDEX(States,RANDBETWEEN(1,50))","v":"ME"},{"$f":"INDEX(Cntry,RANDBETWEEN(1,35))&\", \"&INDEX(Cntry,RANDBETWEEN(1,35))&\", \"&INDEX(Cntry,RANDBETWEEN(1,35))&\", \"&INDEX(Cntry,RANDBETWEEN(1,35))&\", \"&INDEX(Cntry,RANDBETWEEN(1,35))","v":"ISR, NOR, EGY, IND, HUN"},{"$f":"INDEX(LstNm,RANDBETWEEN(1,ROWS(LstNm)))","v":"Webb"},{"$f":"INDEX(UpK,RANDBETWEEN(1,16))&INDEX(vowel,RANDBETWEEN(1,5))&INDEX(LoK,RANDBETWEEN(1,14))","v":"Wus"},{"$f":"INDEX(UpK,RANDBETWEEN(1,16))&INDEX(UpK,RANDBETWEEN(1,16))","v":"HW"},15]
[null,{"$f":"INDEX(States,RANDBETWEEN(1,50))","v":"OH"},{"$f":"INDEX(Cntry,RANDBETWEEN(1,35))&\", \"&INDEX(Cntry,RANDBETWEEN(1,35))&\", \"&INDEX(Cntry,RANDBETWEEN(1,35))&\", \"&INDEX(Cntry,RANDBETWEEN(1,35))&\", \"&INDEX(Cntry,RANDBETWEEN(1,35))","v":"MEX, POR, RUS, SWE, GRE"},{"$f":"INDEX(LstNm,RANDBETWEEN(1,ROWS(LstNm)))","v":"Wells"},{"$f":"INDEX(UpK,RANDBETWEEN(1,16))&INDEX(vowel,RANDBETWEEN(1,5))&INDEX(LoK,RANDBETWEEN(1,14))","v":"Bov"},{"$f":"INDEX(UpK,RANDBETWEEN(1,16))&INDEX(UpK,RANDBETWEEN(1,16))","v":"HB"},48]
[null,{"$f":"INDEX(States,RANDBETWEEN(1,50))","v":"IA"},{"$f":"INDEX(Cntry,RANDBETWEEN(1,35))&\", \"&INDEX(Cntry,RANDBETWEEN(1,35))&\", \"&INDEX(Cntry,RANDBETWEEN(1,35))&\", \"&INDEX(Cntry,RANDBETWEEN(1,35))&\", \"&INDEX(Cntry,RANDBETWEEN(1,35))","v":"GER, IRL, AUT, NED, HUN"},{"$f":"INDEX(LstNm,RANDBETWEEN(1,ROWS(LstNm)))","v":"Taylor"},{"$f":"INDEX(UpK,RANDBETWEEN(1,16))&INDEX(vowel,RANDBETWEEN(1,5))&INDEX(LoK,RANDBETWEEN(1,14))","v":"Vub"},{"$f":"INDEX(UpK,RANDBETWEEN(1,16))&INDEX(UpK,RANDBETWEEN(1,16))","v":"LV"},80]
[null,{"$f":"INDEX(States,RANDBETWEEN(1,50))","v":"OR"},{"$f":"INDEX(Cntry,RANDBETWEEN(1,35))&\", \"&INDEX(Cntry,RANDBETWEEN(1,35))&\", \"&INDEX(Cntry,RANDBETWEEN(1,35))&\", \"&INDEX(Cntry,RANDBETWEEN(1,35))&\", \"&INDEX(Cntry,RANDBETWEEN(1,35))","v":"FIN, RUS, ITA, ITA, IRI"},{"$f":"INDEX(LstNm,RANDBETWEEN(1,ROWS(LstNm)))","v":"Thompson"},{"$f":"INDEX(UpK,RANDBETWEEN(1,16))&INDEX(vowel,RANDBETWEEN(1,5))&INDEX(LoK,RANDBETWEEN(1,14))","v":"Seg"},{"$f":"INDEX(UpK,RANDBETWEEN(1,16))&INDEX(UpK,RANDBETWEEN(1,16))","v":"VN"},94]
[null,{"$f":"INDEX(States,RANDBETWEEN(1,50))","v":"IL"},{"$f":"INDEX(Cntry,RANDBETWEEN(1,35))&\", \"&INDEX(Cntry,RANDBETWEEN(1,35))&\", \"&INDEX(Cntry,RANDBETWEEN(1,35))&\", \"&INDEX(Cntry,RANDBETWEEN(1,35))&\", \"&INDEX(Cntry,RANDBETWEEN(1,35))","v":"BEL, ISR, SUI, ISL, NED"},{"$f":"INDEX(LstNm,RANDBETWEEN(1,ROWS(LstNm)))","v":"White"},{"$f":"INDEX(UpK,RANDBETWEEN(1,16))&INDEX(vowel,RANDBETWEEN(1,5))&INDEX(LoK,RANDBETWEEN(1,14))","v":"Vic"},{"$f":"INDEX(UpK,RANDBETWEEN(1,16))&INDEX(UpK,RANDBETWEEN(1,16))","v":"KJ"},76]
[null,{"$f":"INDEX(States,RANDBETWEEN(1,50))","v":"MT"},{"$f":"INDEX(Cntry,RANDBETWEEN(1,35))&\", \"&INDEX(Cntry,RANDBETWEEN(1,35))&\", \"&INDEX(Cntry,RANDBETWEEN(1,35))&\", \"&INDEX(Cntry,RANDBETWEEN(1,35))&\", \"&INDEX(Cntry,RANDBETWEEN(1,35))","v":"GBR, CZE, SUI, GBR, GRE"},{"$f":"INDEX(LstNm,RANDBETWEEN(1,ROWS(LstNm)))","v":"Richardson"},{"$f":"INDEX(UpK,RANDBETWEEN(1,16))&INDEX(vowel,RANDBETWEEN(1,5))&INDEX(LoK,RANDBETWEEN(1,14))","v":"Baf"},{"$f":"INDEX(UpK,RANDBETWEEN(1,16))&INDEX(UpK,RANDBETWEEN(1,16))","v":"KF"},91]
[null,{"$f":"INDEX(States,RANDBETWEEN(1,50))","v":"SD"},{"$f":"INDEX(Cntry,RANDBETWEEN(1,35))&\", \"&INDEX(Cntry,RANDBETWEEN(1,35))&\", \"&INDEX(Cntry,RANDBETWEEN(1,35))&\", \"&INDEX(Cntry,RANDBETWEEN(1,35))&\", \"&INDEX(Cntry,RANDBETWEEN(1,35))","v":"SWE, SUI, EGY, IRI, ISL"},{"$f":"INDEX(LstNm,RANDBETWEEN(1,ROWS(LstNm)))","v":"Hall"},{"$f":"INDEX(UpK,RANDBETWEEN(1,16))&INDEX(vowel,RANDBETWEEN(1,5))&INDEX(LoK,RANDBETWEEN(1,14))","v":"Tug"},{"$f":"INDEX(UpK,RANDBETWEEN(1,16))&INDEX(UpK,RANDBETWEEN(1,16))","v":"SM"},70]
[null,{"$f":"INDEX(States,RANDBETWEEN(1,50))","v":"AL"},{"$f":"INDEX(Cntry,RANDBETWEEN(1,35))&\", \"&INDEX(Cntry,RANDBETWEEN(1,35))&\", \"&INDEX(Cntry,RANDBETWEEN(1,35))&\", \"&INDEX(Cntry,RANDBETWEEN(1,35))&\", \"&INDEX(Cntry,RANDBETWEEN(1,35))","v":"POR, RUS, POL, GER, CHI"},{"$f":"INDEX(LstNm,RANDBETWEEN(1,ROWS(LstNm)))","v":"Martinez"},{"$f":"INDEX(UpK,RANDBETWEEN(1,16))&INDEX(vowel,RANDBETWEEN(1,5))&INDEX(LoK,RANDBETWEEN(1,14))","v":"Rob"},{"$f":"INDEX(UpK,RANDBETWEEN(1,16))&INDEX(UpK,RANDBETWEEN(1,16))","v":"NJ"},24]
[null,{"$f":"INDEX(States,RANDBETWEEN(1,50))","v":"KY"},{"$f":"INDEX(Cntry,RANDBETWEEN(1,35))&\", \"&INDEX(Cntry,RANDBETWEEN(1,35))&\", \"&INDEX(Cntry,RANDBETWEEN(1,35))&\", \"&INDEX(Cntry,RANDBETWEEN(1,35))&\", \"&INDEX(Cntry,RANDBETWEEN(1,35))","v":"IRI, MEX, GER, DEN, SUI"},{"$f":"INDEX(LstNm,RANDBETWEEN(1,ROWS(LstNm)))","v":"Allen"},{"$f":"INDEX(UpK,RANDBETWEEN(1,16))&INDEX(vowel,RANDBETWEEN(1,5))&INDEX(LoK,RANDBETWEEN(1,14))","v":"Fun"},{"$f":"INDEX(UpK,RANDBETWEEN(1,16))&INDEX(UpK,RANDBETWEEN(1,16))","v":"DJ"},44]
[null,{"$f":"INDEX(States,RANDBETWEEN(1,50))","v":"OK"},{"$f":"INDEX(Cntry,RANDBETWEEN(1,35))&\", \"&INDEX(Cntry,RANDBETWEEN(1,35))&\", \"&INDEX(Cntry,RANDBETWEEN(1,35))&\", \"&INDEX(Cntry,RANDBETWEEN(1,35))&\", \"&INDEX(Cntry,RANDBETWEEN(1,35))","v":"JPN, JPN, CHI, FIN, JPN"},{"$f":"INDEX(LstNm,RANDBETWEEN(1,ROWS(LstNm)))","v":"Barnes"},{"$f":"INDEX(UpK,RANDBETWEEN(1,16))&INDEX(vowel,RANDBETWEEN(1,5))&INDEX(LoK,RANDBETWEEN(1,14))","v":"Vub"},{"$f":"INDEX(UpK,RANDBETWEEN(1,16))&INDEX(UpK,RANDBETWEEN(1,16))","v":"RN"},12]
[null,{"$f":"INDEX(States,RANDBETWEEN(1,50))","v":"RI"},{"$f":"INDEX(Cntry,RANDBETWEEN(1,35))&\", \"&INDEX(Cntry,RANDBETWEEN(1,35))&\", \"&INDEX(Cntry,RANDBETWEEN(1,35))&\", \"&INDEX(Cntry,RANDBETWEEN(1,35))&\", \"&INDEX(Cntry,RANDBETWEEN(1,35))","v":"SUI, POL, DEN, NED, AUS"},{"$f":"INDEX(LstNm,RANDBETWEEN(1,ROWS(LstNm)))","v":"Brooks"},{"$f":"INDEX(UpK,RANDBETWEEN(1,16))&INDEX(vowel,RANDBETWEEN(1,5))&INDEX(LoK,RANDBETWEEN(1,14))","v":"Vit"},{"$f":"INDEX(UpK,RANDBETWEEN(1,16))&INDEX(UpK,RANDBETWEEN(1,16))","v":"DW"},18]
[null,{"$f":"INDEX(States,RANDBETWEEN(1,50))","v":"NE"},{"$f":"INDEX(Cntry,RANDBETWEEN(1,35))&\", \"&INDEX(Cntry,RANDBETWEEN(1,35))&\", \"&INDEX(Cntry,RANDBETWEEN(1,35))&\", \"&INDEX(Cntry,RANDBETWEEN(1,35))&\", \"&INDEX(Cntry,RANDBETWEEN(1,35))","v":"NOR, ESP, AUS, CHN, RUS"},{"$f":"INDEX(LstNm,RANDBETWEEN(1,ROWS(LstNm)))","v":"Collins"},{"$f":"INDEX(UpK,RANDBETWEEN(1,16))&INDEX(vowel,RANDBETWEEN(1,5))&INDEX(LoK,RANDBETWEEN(1,14))","v":"Bap"},{"$f":"INDEX(UpK,RANDBETWEEN(1,16))&INDEX(UpK,RANDBETWEEN(1,16))","v":"ML"},28]
[null,{"$f":"INDEX(States,RANDBETWEEN(1,50))","v":"UT"},{"$f":"INDEX(Cntry,RANDBETWEEN(1,35))&\", \"&INDEX(Cntry,RANDBETWEEN(1,35))&\", \"&INDEX(Cntry,RANDBETWEEN(1,35))&\", \"&INDEX(Cntry,RANDBETWEEN(1,35))&\", \"&INDEX(Cntry,RANDBETWEEN(1,35))","v":"NOR, SWE, ARG, EGY, FRA"},{"$f":"INDEX(LstNm,RANDBETWEEN(1,ROWS(LstNm)))","v":"Anderson"},{"$f":"INDEX(UpK,RANDBETWEEN(1,16))&INDEX(vowel,RANDBETWEEN(1,5))&INDEX(LoK,RANDBETWEEN(1,14))","v":"Wih"},{"$f":"INDEX(UpK,RANDBETWEEN(1,16))&INDEX(UpK,RANDBETWEEN(1,16))","v":"NV"},29]
[null,{"$f":"INDEX(States,RANDBETWEEN(1,50))","v":"TN"},{"$f":"INDEX(Cntry,RANDBETWEEN(1,35))&\", \"&INDEX(Cntry,RANDBETWEEN(1,35))&\", \"&INDEX(Cntry,RANDBETWEEN(1,35))&\", \"&INDEX(Cntry,RANDBETWEEN(1,35))&\", \"&INDEX(Cntry,RANDBETWEEN(1,35))","v":"BRA, RSA, IRI, CHN, GER"},{"$f":"INDEX(LstNm,RANDBETWEEN(1,ROWS(LstNm)))","v":"Rivera"},{"$f":"INDEX(UpK,RANDBETWEEN(1,16))&INDEX(vowel,RANDBETWEEN(1,5))&INDEX(LoK,RANDBETWEEN(1,14))","v":"Dog"},{"$f":"INDEX(UpK,RANDBETWEEN(1,16))&INDEX(UpK,RANDBETWEEN(1,16))","v":"VF"},50]
[null,{"$f":"INDEX(States,RANDBETWEEN(1,50))","v":"NH"},{"$f":"INDEX(Cntry,RANDBETWEEN(1,35))&\", \"&INDEX(Cntry,RANDBETWEEN(1,35))&\", \"&INDEX(Cntry,RANDBETWEEN(1,35))&\", \"&INDEX(Cntry,RANDBETWEEN(1,35))&\", \"&INDEX(Cntry,RANDBETWEEN(1,35))","v":"FRA, DEN, RSA, ITA, IND"},{"$f":"INDEX(LstNm,RANDBETWEEN(1,ROWS(LstNm)))","v":"Watson"},{"$f":"INDEX(UpK,RANDBETWEEN(1,16))&INDEX(vowel,RANDBETWEEN(1,5))&INDEX(LoK,RANDBETWEEN(1,14))","v":"Hot"},{"$f":"INDEX(UpK,RANDBETWEEN(1,16))&INDEX(UpK,RANDBETWEEN(1,16))","v":"KD"},28]
[null,{"$f":"INDEX(States,RANDBETWEEN(1,50))","v":"NM"},{"$f":"INDEX(Cntry,RANDBETWEEN(1,35))&\", \"&INDEX(Cntry,RANDBETWEEN(1,35))&\", \"&INDEX(Cntry,RANDBETWEEN(1,35))&\", \"&INDEX(Cntry,RANDBETWEEN(1,35))&\", \"&INDEX(Cntry,RANDBETWEEN(1,35))","v":"CAN, ESP, FRA, AUS, ARG"},{"$f":"INDEX(LstNm,RANDBETWEEN(1,ROWS(LstNm)))","v":"Cooper"},{"$f":"INDEX(UpK,RANDBETWEEN(1,16))&INDEX(vowel,RANDBETWEEN(1,5))&INDEX(LoK,RANDBETWEEN(1,14))","v":"Fuv"},{"$f":"INDEX(UpK,RANDBETWEEN(1,16))&INDEX(UpK,RANDBETWEEN(1,16))","v":"FR"},61]
[null,{"$f":"INDEX(States,RANDBETWEEN(1,50))","v":"WA"},{"$f":"INDEX(Cntry,RANDBETWEEN(1,35))&\", \"&INDEX(Cntry,RANDBETWEEN(1,35))&\", \"&INDEX(Cntry,RANDBETWEEN(1,35))&\", \"&INDEX(Cntry,RANDBETWEEN(1,35))&\", \"&INDEX(Cntry,RANDBETWEEN(1,35))","v":"JPN, GER, CHI, POR, INA"},{"$f":"INDEX(LstNm,RANDBETWEEN(1,ROWS(LstNm)))","v":"Ross"},{"$f":"INDEX(UpK,RANDBETWEEN(1,16))&INDEX(vowel,RANDBETWEEN(1,5))&INDEX(LoK,RANDBETWEEN(1,14))","v":"Mik"},{"$f":"INDEX(UpK,RANDBETWEEN(1,16))&INDEX(UpK,RANDBETWEEN(1,16))","v":"MV"},99]
[null,{"$f":"INDEX(States,RANDBETWEEN(1,50))","v":"MN"},{"$f":"INDEX(Cntry,RANDBETWEEN(1,35))&\", \"&INDEX(Cntry,RANDBETWEEN(1,35))&\", \"&INDEX(Cntry,RANDBETWEEN(1,35))&\", \"&INDEX(Cntry,RANDBETWEEN(1,35))&\", \"&INDEX(Cntry,RANDBETWEEN(1,35))","v":"RUS, POR, POR, POL, ISR"},{"$f":"INDEX(LstNm,RANDBETWEEN(1,ROWS(LstNm)))","v":"Simpson"},{"$f":"INDEX(UpK,RANDBETWEEN(1,16))&INDEX(vowel,RANDBETWEEN(1,5))&INDEX(LoK,RANDBETWEEN(1,14))","v":"Sod"},{"$f":"INDEX(UpK,RANDBETWEEN(1,16))&INDEX(UpK,RANDBETWEEN(1,16))","v":"NT"},42]
[null,{"$f":"INDEX(States,RANDBETWEEN(1,50))","v":"IA"},{"$f":"INDEX(Cntry,RANDBETWEEN(1,35))&\", \"&INDEX(Cntry,RANDBETWEEN(1,35))&\", \"&INDEX(Cntry,RANDBETWEEN(1,35))&\", \"&INDEX(Cntry,RANDBETWEEN(1,35))&\", \"&INDEX(Cntry,RANDBETWEEN(1,35))","v":"AUT, NOR, HUN, POR, FIN"},{"$f":"INDEX(LstNm,RANDBETWEEN(1,ROWS(LstNm)))","v":"Perez"},{"$f":"INDEX(UpK,RANDBETWEEN(1,16))&INDEX(vowel,RANDBETWEEN(1,5))&INDEX(LoK,RANDBETWEEN(1,14))","v":"Mun"},{"$f":"INDEX(UpK,RANDBETWEEN(1,16))&INDEX(UpK,RANDBETWEEN(1,16))","v":"MK"},35]
[null,{"$f":"INDEX(States,RANDBETWEEN(1,50))","v":"NH"},{"$f":"INDEX(Cntry,RANDBETWEEN(1,35))&\", \"&INDEX(Cntry,RANDBETWEEN(1,35))&\", \"&INDEX(Cntry,RANDBETWEEN(1,35))&\", \"&INDEX(Cntry,RANDBETWEEN(1,35))&\", \"&INDEX(Cntry,RANDBETWEEN(1,35))","v":"ESP, JPN, HUN, IRI, ISL"},{"$f":"INDEX(LstNm,RANDBETWEEN(1,ROWS(LstNm)))","v":"Graham"},{"$f":"INDEX(UpK,RANDBETWEEN(1,16))&INDEX(vowel,RANDBETWEEN(1,5))&INDEX(LoK,RANDBETWEEN(1,14))","v":"Had"},{"$f":"INDEX(UpK,RANDBETWEEN(1,16))&INDEX(UpK,RANDBETWEEN(1,16))","v":"FR"},76]
[null,{"$f":"INDEX(States,RANDBETWEEN(1,50))","v":"IL"},{"$f":"INDEX(Cntry,RANDBETWEEN(1,35))&\", \"&INDEX(Cntry,RANDBETWEEN(1,35))&\", \"&INDEX(Cntry,RANDBETWEEN(1,35))&\", \"&INDEX(Cntry,RANDBETWEEN(1,35))&\", \"&INDEX(Cntry,RANDBETWEEN(1,35))","v":"POL, INA, BEL, ARG, FIN"},{"$f":"INDEX(LstNm,RANDBETWEEN(1,ROWS(LstNm)))","v":"Wallace"},{"$f":"INDEX(UpK,RANDBETWEEN(1,16))&INDEX(vowel,RANDBETWEEN(1,5))&INDEX(LoK,RANDBETWEEN(1,14))","v":"Lud"},{"$f":"INDEX(UpK,RANDBETWEEN(1,16))&INDEX(UpK,RANDBETWEEN(1,16))","v":"VG"},21]
[null,{"$f":"INDEX(States,RANDBETWEEN(1,50))","v":"WI"},{"$f":"INDEX(Cntry,RANDBETWEEN(1,35))&\", \"&INDEX(Cntry,RANDBETWEEN(1,35))&\", \"&INDEX(Cntry,RANDBETWEEN(1,35))&\", \"&INDEX(Cntry,RANDBETWEEN(1,35))&\", \"&INDEX(Cntry,RANDBETWEEN(1,35))","v":"NED, IND, HUN, HUN, POL"},{"$f":"INDEX(LstNm,RANDBETWEEN(1,ROWS(LstNm)))","v":"Wells"},{"$f":"INDEX(UpK,RANDBETWEEN(1,16))&INDEX(vowel,RANDBETWEEN(1,5))&INDEX(LoK,RANDBETWEEN(1,14))","v":"Vor"},{"$f":"INDEX(UpK,RANDBETWEEN(1,16))&INDEX(UpK,RANDBETWEEN(1,16))","v":"MG"},69]
[null,{"$f":"INDEX(States,RANDBETWEEN(1,50))","v":"CA"},{"$f":"INDEX(Cntry,RANDBETWEEN(1,35))&\", \"&INDEX(Cntry,RANDBETWEEN(1,35))&\", \"&INDEX(Cntry,RANDBETWEEN(1,35))&\", \"&INDEX(Cntry,RANDBETWEEN(1,35))&\", \"&INDEX(Cntry,RANDBETWEEN(1,35))","v":"GRE, INA, JPN, EGY, POR"},{"$f":"INDEX(LstNm,RANDBETWEEN(1,ROWS(LstNm)))","v":"Webb"},{"$f":"INDEX(UpK,RANDBETWEEN(1,16))&INDEX(vowel,RANDBETWEEN(1,5))&INDEX(LoK,RANDBETWEEN(1,14))","v":"Fet"},{"$f":"INDEX(UpK,RANDBETWEEN(1,16))&INDEX(UpK,RANDBETWEEN(1,16))","v":"JV"},72]
[null,{"$f":"INDEX(States,RANDBETWEEN(1,50))","v":"IA"},{"$f":"INDEX(Cntry,RANDBETWEEN(1,35))&\", \"&INDEX(Cntry,RANDBETWEEN(1,35))&\", \"&INDEX(Cntry,RANDBETWEEN(1,35))&\", \"&INDEX(Cntry,RANDBETWEEN(1,35))&\", \"&INDEX(Cntry,RANDBETWEEN(1,35))","v":"NED, SWE, CZE, ARG, POL"},{"$f":"INDEX(LstNm,RANDBETWEEN(1,ROWS(LstNm)))","v":"Sanders"},{"$f":"INDEX(UpK,RANDBETWEEN(1,16))&INDEX(vowel,RANDBETWEEN(1,5))&INDEX(LoK,RANDBETWEEN(1,14))","v":"Vuk"},{"$f":"INDEX(UpK,RANDBETWEEN(1,16))&INDEX(UpK,RANDBETWEEN(1,16))","v":"DL"},77]
[null,{"$f":"INDEX(States,RANDBETWEEN(1,50))","v":"IA"},{"$f":"INDEX(Cntry,RANDBETWEEN(1,35))&\", \"&INDEX(Cntry,RANDBETWEEN(1,35))&\", \"&INDEX(Cntry,RANDBETWEEN(1,35))&\", \"&INDEX(Cntry,RANDBETWEEN(1,35))&\", \"&INDEX(Cntry,RANDBETWEEN(1,35))","v":"BRA, CAN, AUS, CHI, ESP"},{"$f":"INDEX(LstNm,RANDBETWEEN(1,ROWS(LstNm)))","v":"Rivera"},{"$f":"INDEX(UpK,RANDBETWEEN(1,16))&INDEX(vowel,RANDBETWEEN(1,5))&INDEX(LoK,RANDBETWEEN(1,14))","v":"Dut"},{"$f":"INDEX(UpK,RANDBETWEEN(1,16))&INDEX(UpK,RANDBETWEEN(1,16))","v":"BW"},73]
[null,{"$f":"INDEX(States,RANDBETWEEN(1,50))","v":"OH"},{"$f":"INDEX(Cntry,RANDBETWEEN(1,35))&\", \"&INDEX(Cntry,RANDBETWEEN(1,35))&\", \"&INDEX(Cntry,RANDBETWEEN(1,35))&\", \"&INDEX(Cntry,RANDBETWEEN(1,35))&\", \"&INDEX(Cntry,RANDBETWEEN(1,35))","v":"ARG, BEL, ESP, SWE, SUI"},{"$f":"INDEX(LstNm,RANDBETWEEN(1,ROWS(LstNm)))","v":"Gonzalez"},{"$f":"INDEX(UpK,RANDBETWEEN(1,16))&INDEX(vowel,RANDBETWEEN(1,5))&INDEX(LoK,RANDBETWEEN(1,14))","v":"Dam"},{"$f":"INDEX(UpK,RANDBETWEEN(1,16))&INDEX(UpK,RANDBETWEEN(1,16))","v":"TD"},79]
[null,{"$f":"INDEX(States,RANDBETWEEN(1,50))","v":"CO"},{"$f":"INDEX(Cntry,RANDBETWEEN(1,35))&\", \"&INDEX(Cntry,RANDBETWEEN(1,35))&\", \"&INDEX(Cntry,RANDBETWEEN(1,35))&\", \"&INDEX(Cntry,RANDBETWEEN(1,35))&\", \"&INDEX(Cntry,RANDBETWEEN(1,35))","v":"AUT, POR, GRE, CZE, NED"},{"$f":"INDEX(LstNm,RANDBETWEEN(1,ROWS(LstNm)))","v":"Murphy"},{"$f":"INDEX(UpK,RANDBETWEEN(1,16))&INDEX(vowel,RANDBETWEEN(1,5))&INDEX(LoK,RANDBETWEEN(1,14))","v":"Bar"},{"$f":"INDEX(UpK,RANDBETWEEN(1,16))&INDEX(UpK,RANDBETWEEN(1,16))","v":"LJ"},72]
[null,{"$f":"INDEX(States,RANDBETWEEN(1,50))","v":"NJ"},{"$f":"INDEX(Cntry,RANDBETWEEN(1,35))&\", \"&INDEX(Cntry,RANDBETWEEN(1,35))&\", \"&INDEX(Cntry,RANDBETWEEN(1,35))&\", \"&INDEX(Cntry,RANDBETWEEN(1,35))&\", \"&INDEX(Cntry,RANDBETWEEN(1,35))","v":"RUS, GBR, FRA, ISL, ITA"},{"$f":"INDEX(LstNm,RANDBETWEEN(1,ROWS(LstNm)))","v":"Butler"},{"$f":"INDEX(UpK,RANDBETWEEN(1,16))&INDEX(vowel,RANDBETWEEN(1,5))&INDEX(LoK,RANDBETWEEN(1,14))","v":"Mef"},{"$f":"INDEX(UpK,RANDBETWEEN(1,16))&INDEX(UpK,RANDBETWEEN(1,16))","v":"KM"},91]
[null,{"$f":"INDEX(States,RANDBETWEEN(1,50))","v":"NV"},{"$f":"INDEX(Cntry,RANDBETWEEN(1,35))&\", \"&INDEX(Cntry,RANDBETWEEN(1,35))&\", \"&INDEX(Cntry,RANDBETWEEN(1,35))&\", \"&INDEX(Cntry,RANDBETWEEN(1,35))&\", \"&INDEX(Cntry,RANDBETWEEN(1,35))","v":"ISR, FIN, AUS, IRL, ISR"},{"$f":"INDEX(LstNm,RANDBETWEEN(1,ROWS(LstNm)))","v":"Richardson"},{"$f":"INDEX(UpK,RANDBETWEEN(1,16))&INDEX(vowel,RANDBETWEEN(1,5))&INDEX(LoK,RANDBETWEEN(1,14))","v":"Rev"},{"$f":"INDEX(UpK,RANDBETWEEN(1,16))&INDEX(UpK,RANDBETWEEN(1,16))","v":"KG"},57]
[null,{"$f":"INDEX(States,RANDBETWEEN(1,50))","v":"UT"},{"$f":"INDEX(Cntry,RANDBETWEEN(1,35))&\", \"&INDEX(Cntry,RANDBETWEEN(1,35))&\", \"&INDEX(Cntry,RANDBETWEEN(1,35))&\", \"&INDEX(Cntry,RANDBETWEEN(1,35))&\", \"&INDEX(Cntry,RANDBETWEEN(1,35))","v":"NED, BRA, POL, IND, GER"},{"$f":"INDEX(LstNm,RANDBETWEEN(1,ROWS(LstNm)))","v":"Freeman"},{"$f":"INDEX(UpK,RANDBETWEEN(1,16))&INDEX(vowel,RANDBETWEEN(1,5))&INDEX(LoK,RANDBETWEEN(1,14))","v":"Bih"},{"$f":"INDEX(UpK,RANDBETWEEN(1,16))&INDEX(UpK,RANDBETWEEN(1,16))","v":"FR"},15]
[null,{"$f":"INDEX(States,RANDBETWEEN(1,50))","v":"NM"},{"$f":"INDEX(Cntry,RANDBETWEEN(1,35))&\", \"&INDEX(Cntry,RANDBETWEEN(1,35))&\", \"&INDEX(Cntry,RANDBETWEEN(1,35))&\", \"&INDEX(Cntry,RANDBETWEEN(1,35))&\", \"&INDEX(Cntry,RANDBETWEEN(1,35))","v":"POR, AUT, CZE, POL, NED"},{"$f":"INDEX(LstNm,RANDBETWEEN(1,ROWS(LstNm)))","v":"Gonzales"},{"$f":"INDEX(UpK,RANDBETWEEN(1,16))&INDEX(vowel,RANDBETWEEN(1,5))&INDEX(LoK,RANDBETWEEN(1,14))","v":"Sih"},{"$f":"INDEX(UpK,RANDBETWEEN(1,16))&INDEX(UpK,RANDBETWEEN(1,16))","v":"HS"},59]
[null,{"$f":"INDEX(States,RANDBETWEEN(1,50))","v":"SD"},{"$f":"INDEX(Cntry,RANDBETWEEN(1,35))&\", \"&INDEX(Cntry,RANDBETWEEN(1,35))&\", \"&INDEX(Cntry,RANDBETWEEN(1,35))&\", \"&INDEX(Cntry,RANDBETWEEN(1,35))&\", \"&INDEX(Cntry,RANDBETWEEN(1,35))","v":"ISL, IND, ITA, IND, CHN"},{"$f":"INDEX(LstNm,RANDBETWEEN(1,ROWS(LstNm)))","v":"Long"},{"$f":"INDEX(UpK,RANDBETWEEN(1,16))&INDEX(vowel,RANDBETWEEN(1,5))&INDEX(LoK,RANDBETWEEN(1,14))","v":"Sut"},{"$f":"INDEX(UpK,RANDBETWEEN(1,16))&INDEX(UpK,RANDBETWEEN(1,16))","v":"MJ"},79]
[null,{"$f":"INDEX(States,RANDBETWEEN(1,50))","v":"FL"},{"$f":"INDEX(Cntry,RANDBETWEEN(1,35))&\", \"&INDEX(Cntry,RANDBETWEEN(1,35))&\", \"&INDEX(Cntry,RANDBETWEEN(1,35))&\", \"&INDEX(Cntry,RANDBETWEEN(1,35))&\", \"&INDEX(Cntry,RANDBETWEEN(1,35))","v":"RSA, SUI, RUS, RSA, GBR"},{"$f":"INDEX(LstNm,RANDBETWEEN(1,ROWS(LstNm)))","v":"Webb"},{"$f":"INDEX(UpK,RANDBETWEEN(1,16))&INDEX(vowel,RANDBETWEEN(1,5))&INDEX(LoK,RANDBETWEEN(1,14))","v":"Maf"},{"$f":"INDEX(UpK,RANDBETWEEN(1,16))&INDEX(UpK,RANDBETWEEN(1,16))","v":"DH"},95]
[null,{"$f":"INDEX(States,RANDBETWEEN(1,50))","v":"TN"},{"$f":"INDEX(Cntry,RANDBETWEEN(1,35))&\", \"&INDEX(Cntry,RANDBETWEEN(1,35))&\", \"&INDEX(Cntry,RANDBETWEEN(1,35))&\", \"&INDEX(Cntry,RANDBETWEEN(1,35))&\", \"&INDEX(Cntry,RANDBETWEEN(1,35))","v":"MEX, CAN, ESP, IRI, RSA"},{"$f":"INDEX(LstNm,RANDBETWEEN(1,ROWS(LstNm)))","v":"Perry"},{"$f":"INDEX(UpK,RANDBETWEEN(1,16))&INDEX(vowel,RANDBETWEEN(1,5))&INDEX(LoK,RANDBETWEEN(1,14))","v":"Pak"},{"$f":"INDEX(UpK,RANDBETWEEN(1,16))&INDEX(UpK,RANDBETWEEN(1,16))","v":"FR"},14]
[null,{"$f":"INDEX(States,RANDBETWEEN(1,50))","v":"WA"},{"$f":"INDEX(Cntry,RANDBETWEEN(1,35))&\", \"&INDEX(Cntry,RANDBETWEEN(1,35))&\", \"&INDEX(Cntry,RANDBETWEEN(1,35))&\", \"&INDEX(Cntry,RANDBETWEEN(1,35))&\", \"&INDEX(Cntry,RANDBETWEEN(1,35))","v":"ISL, CZE, EGY, IRL, SWE"},{"$f":"INDEX(LstNm,RANDBETWEEN(1,ROWS(LstNm)))","v":"Sanders"},{"$f":"INDEX(UpK,RANDBETWEEN(1,16))&INDEX(vowel,RANDBETWEEN(1,5))&INDEX(LoK,RANDBETWEEN(1,14))","v":"Kes"},{"$f":"INDEX(UpK,RANDBETWEEN(1,16))&INDEX(UpK,RANDBETWEEN(1,16))","v":"VW"},{"$f":"RANDBETWEEN(10,99)","v":36}]
[null,{"$f":"INDEX(States,RANDBETWEEN(1,50))","v":"CO"},{"$f":"INDEX(Cntry,RANDBETWEEN(1,35))&\", \"&INDEX(Cntry,RANDBETWEEN(1,35))&\", \"&INDEX(Cntry,RANDBETWEEN(1,35))&\", \"&INDEX(Cntry,RANDBETWEEN(1,35))&\", \"&INDEX(Cntry,RANDBETWEEN(1,35))","v":"EGY, AUS, IND, BEL, POL"},{"$f":"INDEX(LstNm,RANDBETWEEN(1,ROWS(LstNm)))","v":"Anderson"},{"$f":"INDEX(UpK,RANDBETWEEN(1,16))&INDEX(vowel,RANDBETWEEN(1,5))&INDEX(LoK,RANDBETWEEN(1,14))","v":"Veb"},{"$f":"INDEX(UpK,RANDBETWEEN(1,16))&INDEX(UpK,RANDBETWEEN(1,16))","v":"KH"},11]
[null,{"$f":"INDEX(States,RANDBETWEEN(1,50))","v":"MT"},{"$f":"INDEX(Cntry,RANDBETWEEN(1,35))&\", \"&INDEX(Cntry,RANDBETWEEN(1,35))&\", \"&INDEX(Cntry,RANDBETWEEN(1,35))&\", \"&INDEX(Cntry,RANDBETWEEN(1,35))&\", \"&INDEX(Cntry,RANDBETWEEN(1,35))","v":"CAN, FRA, BRA, BEL, AUS"},{"$f":"INDEX(LstNm,RANDBETWEEN(1,ROWS(LstNm)))","v":"Thomas"},{"$f":"INDEX(UpK,RANDBETWEEN(1,16))&INDEX(vowel,RANDBETWEEN(1,5))&INDEX(LoK,RANDBETWEEN(1,14))","v":"War"},{"$f":"INDEX(UpK,RANDBETWEEN(1,16))&INDEX(UpK,RANDBETWEEN(1,16))","v":"NJ"},20]
[null,{"$f":"INDEX(States,RANDBETWEEN(1,50))","v":"AR"},{"$f":"INDEX(Cntry,RANDBETWEEN(1,35))&\", \"&INDEX(Cntry,RANDBETWEEN(1,35))&\", \"&INDEX(Cntry,RANDBETWEEN(1,35))&\", \"&INDEX(Cntry,RANDBETWEEN(1,35))&\", \"&INDEX(Cntry,RANDBETWEEN(1,35))","v":"EGY, POL, IRI, BEL, AUS"},{"$f":"INDEX(LstNm,RANDBETWEEN(1,ROWS(LstNm)))","v":"Wood"},{"$f":"INDEX(UpK,RANDBETWEEN(1,16))&INDEX(vowel,RANDBETWEEN(1,5))&INDEX(LoK,RANDBETWEEN(1,14))","v":"Bub"},{"$f":"INDEX(UpK,RANDBETWEEN(1,16))&INDEX(UpK,RANDBETWEEN(1,16))","v":"VM"},27]
[null,{"$f":"INDEX(States,RANDBETWEEN(1,50))","v":"AZ"},{"$f":"INDEX(Cntry,RANDBETWEEN(1,35))&\", \"&INDEX(Cntry,RANDBETWEEN(1,35))&\", \"&INDEX(Cntry,RANDBETWEEN(1,35))&\", \"&INDEX(Cntry,RANDBETWEEN(1,35))&\", \"&INDEX(Cntry,RANDBETWEEN(1,35))","v":"RSA, IRI, IND, RUS, INA"},{"$f":"INDEX(LstNm,RANDBETWEEN(1,ROWS(LstNm)))","v":"Kelly"},{"$f":"INDEX(UpK,RANDBETWEEN(1,16))&INDEX(vowel,RANDBETWEEN(1,5))&INDEX(LoK,RANDBETWEEN(1,14))","v":"Tam"},{"$f":"INDEX(UpK,RANDBETWEEN(1,16))&INDEX(UpK,RANDBETWEEN(1,16))","v":"JD"},69]
[null,{"$f":"INDEX(States,RANDBETWEEN(1,50))","v":"AR"},{"$f":"INDEX(Cntry,RANDBETWEEN(1,35))&\", \"&INDEX(Cntry,RANDBETWEEN(1,35))&\", \"&INDEX(Cntry,RANDBETWEEN(1,35))&\", \"&INDEX(Cntry,RANDBETWEEN(1,35))&\", \"&INDEX(Cntry,RANDBETWEEN(1,35))","v":"GBR, ESP, JPN, CZE, NOR"},{"$f":"INDEX(LstNm,RANDBETWEEN(1,ROWS(LstNm)))","v":"Morgan"},{"$f":"INDEX(UpK,RANDBETWEEN(1,16))&INDEX(vowel,RANDBETWEEN(1,5))&INDEX(LoK,RANDBETWEEN(1,14))","v":"Wid"},{"$f":"INDEX(UpK,RANDBETWEEN(1,16))&INDEX(UpK,RANDBETWEEN(1,16))","v":"JW"},35]
[null,{"$f":"INDEX(States,RANDBETWEEN(1,50))","v":"NJ"},{"$f":"INDEX(Cntry,RANDBETWEEN(1,35))&\", \"&INDEX(Cntry,RANDBETWEEN(1,35))&\", \"&INDEX(Cntry,RANDBETWEEN(1,35))&\", \"&INDEX(Cntry,RANDBETWEEN(1,35))&\", \"&INDEX(Cntry,RANDBETWEEN(1,35))","v":"CHN, GER, FRA, SWE, IND"},{"$f":"INDEX(LstNm,RANDBETWEEN(1,ROWS(LstNm)))","v":"Rogers"},{"$f":"INDEX(UpK,RANDBETWEEN(1,16))&INDEX(vowel,RANDBETWEEN(1,5))&INDEX(LoK,RANDBETWEEN(1,14))","v":"Sag"},{"$f":"INDEX(UpK,RANDBETWEEN(1,16))&INDEX(UpK,RANDBETWEEN(1,16))","v":"JR"},69]
[null,{"$f":"INDEX(States,RANDBETWEEN(1,50))","v":"OH"},{"$f":"INDEX(Cntry,RANDBETWEEN(1,35))&\", \"&INDEX(Cntry,RANDBETWEEN(1,35))&\", \"&INDEX(Cntry,RANDBETWEEN(1,35))&\", \"&INDEX(Cntry,RANDBETWEEN(1,35))&\", \"&INDEX(Cntry,RANDBETWEEN(1,35))","v":"NED, CZE, FRA, NED, INA"},{"$f":"INDEX(LstNm,RANDBETWEEN(1,ROWS(LstNm)))","v":"Crawford"},{"$f":"INDEX(UpK,RANDBETWEEN(1,16))&INDEX(vowel,RANDBETWEEN(1,5))&INDEX(LoK,RANDBETWEEN(1,14))","v":"Lor"},{"$f":"INDEX(UpK,RANDBETWEEN(1,16))&INDEX(UpK,RANDBETWEEN(1,16))","v":"VS"},17]
[null,{"$f":"INDEX(States,RANDBETWEEN(1,50))","v":"WV"},{"$f":"INDEX(Cntry,RANDBETWEEN(1,35))&\", \"&INDEX(Cntry,RANDBETWEEN(1,35))&\", \"&INDEX(Cntry,RANDBETWEEN(1,35))&\", \"&INDEX(Cntry,RANDBETWEEN(1,35))&\", \"&INDEX(Cntry,RANDBETWEEN(1,35))","v":"IRI, JPN, BRA, RSA, CAN"},{"$f":"INDEX(LstNm,RANDBETWEEN(1,ROWS(LstNm)))","v":"Henderson"},{"$f":"INDEX(UpK,RANDBETWEEN(1,16))&INDEX(vowel,RANDBETWEEN(1,5))&INDEX(LoK,RANDBETWEEN(1,14))","v":"Meg"},{"$f":"INDEX(UpK,RANDBETWEEN(1,16))&INDEX(UpK,RANDBETWEEN(1,16))","v":"GH"},42]
[null,{"$f":"INDEX(States,RANDBETWEEN(1,50))","v":"MO"},{"$f":"INDEX(Cntry,RANDBETWEEN(1,35))&\", \"&INDEX(Cntry,RANDBETWEEN(1,35))&\", \"&INDEX(Cntry,RANDBETWEEN(1,35))&\", \"&INDEX(Cntry,RANDBETWEEN(1,35))&\", \"&INDEX(Cntry,RANDBETWEEN(1,35))","v":"POL, DEN, IND, AUT, POL"},{"$f":"INDEX(LstNm,RANDBETWEEN(1,ROWS(LstNm)))","v":"Evans"},{"$f":"INDEX(UpK,RANDBETWEEN(1,16))&INDEX(vowel,RANDBETWEEN(1,5))&INDEX(LoK,RANDBETWEEN(1,14))","v":"Voc"},{"$f":"INDEX(UpK,RANDBETWEEN(1,16))&INDEX(UpK,RANDBETWEEN(1,16))","v":"PF"},94]
[null,{"$f":"INDEX(States,RANDBETWEEN(1,50))","v":"IL"},{"$f":"INDEX(Cntry,RANDBETWEEN(1,35))&\", \"&INDEX(Cntry,RANDBETWEEN(1,35))&\", \"&INDEX(Cntry,RANDBETWEEN(1,35))&\", \"&INDEX(Cntry,RANDBETWEEN(1,35))&\", \"&INDEX(Cntry,RANDBETWEEN(1,35))","v":"FRA, AUS, IND, NOR, CHI"},{"$f":"INDEX(LstNm,RANDBETWEEN(1,ROWS(LstNm)))","v":"Coleman"},{"$f":"INDEX(UpK,RANDBETWEEN(1,16))&INDEX(vowel,RANDBETWEEN(1,5))&INDEX(LoK,RANDBETWEEN(1,14))","v":"Vop"},{"$f":"INDEX(UpK,RANDBETWEEN(1,16))&INDEX(UpK,RANDBETWEEN(1,16))","v":"RH"},25]
[null,{"$f":"INDEX(States,RANDBETWEEN(1,50))","v":"CO"},{"$f":"INDEX(Cntry,RANDBETWEEN(1,35))&\", \"&INDEX(Cntry,RANDBETWEEN(1,35))&\", \"&INDEX(Cntry,RANDBETWEEN(1,35))&\", \"&INDEX(Cntry,RANDBETWEEN(1,35))&\", \"&INDEX(Cntry,RANDBETWEEN(1,35))","v":"AUT, NOR, MEX, MEX, AUS"},{"$f":"INDEX(LstNm,RANDBETWEEN(1,ROWS(LstNm)))","v":"Morris"},{"$f":"INDEX(UpK,RANDBETWEEN(1,16))&INDEX(vowel,RANDBETWEEN(1,5))&INDEX(LoK,RANDBETWEEN(1,14))","v":"Suv"},{"$f":"INDEX(UpK,RANDBETWEEN(1,16))&INDEX(UpK,RANDBETWEEN(1,16))","v":"HP"},14]
[null,{"$f":"INDEX(States,RANDBETWEEN(1,50))","v":"AR"},{"$f":"INDEX(Cntry,RANDBETWEEN(1,35))&\", \"&INDEX(Cntry,RANDBETWEEN(1,35))&\", \"&INDEX(Cntry,RANDBETWEEN(1,35))&\", \"&INDEX(Cntry,RANDBETWEEN(1,35))&\", \"&INDEX(Cntry,RANDBETWEEN(1,35))","v":"BEL, NED, IRL, IND, SUI"},{"$f":"INDEX(LstNm,RANDBETWEEN(1,ROWS(LstNm)))","v":"Hughes"},{"$f":"INDEX(UpK,RANDBETWEEN(1,16))&INDEX(vowel,RANDBETWEEN(1,5))&INDEX(LoK,RANDBETWEEN(1,14))","v":"Fap"},{"$f":"INDEX(UpK,RANDBETWEEN(1,16))&INDEX(UpK,RANDBETWEEN(1,16))","v":"SJ"},62]
[null,{"$f":"INDEX(States,RANDBETWEEN(1,50))","v":"AZ"},{"$f":"INDEX(Cntry,RANDBETWEEN(1,35))&\", \"&INDEX(Cntry,RANDBETWEEN(1,35))&\", \"&INDEX(Cntry,RANDBETWEEN(1,35))&\", \"&INDEX(Cntry,RANDBETWEEN(1,35))&\", \"&INDEX(Cntry,RANDBETWEEN(1,35))","v":"FIN, DEN, ARG, GRE, ITA"},{"$f":"INDEX(LstNm,RANDBETWEEN(1,ROWS(LstNm)))","v":"Murray"},{"$f":"INDEX(UpK,RANDBETWEEN(1,16))&INDEX(vowel,RANDBETWEEN(1,5))&INDEX(LoK,RANDBETWEEN(1,14))","v":"Bes"},{"$f":"INDEX(UpK,RANDBETWEEN(1,16))&INDEX(UpK,RANDBETWEEN(1,16))","v":"VW"},83]
[null,{"$f":"INDEX(States,RANDBETWEEN(1,50))","v":"WY"},{"$f":"INDEX(Cntry,RANDBETWEEN(1,35))&\", \"&INDEX(Cntry,RANDBETWEEN(1,35))&\", \"&INDEX(Cntry,RANDBETWEEN(1,35))&\", \"&INDEX(Cntry,RANDBETWEEN(1,35))&\", \"&INDEX(Cntry,RANDBETWEEN(1,35))","v":"ARG, MEX, IRL, CZE, ARG"},{"$f":"INDEX(LstNm,RANDBETWEEN(1,ROWS(LstNm)))","v":"Howard"},{"$f":"INDEX(UpK,RANDBETWEEN(1,16))&INDEX(vowel,RANDBETWEEN(1,5))&INDEX(LoK,RANDBETWEEN(1,14))","v":"Hak"},{"$f":"INDEX(UpK,RANDBETWEEN(1,16))&INDEX(UpK,RANDBETWEEN(1,16))","v":"PS"},48]
[null,{"$f":"INDEX(States,RANDBETWEEN(1,50))","v":"NH"},{"$f":"INDEX(Cntry,RANDBETWEEN(1,35))&\", \"&INDEX(Cntry,RANDBETWEEN(1,35))&\", \"&INDEX(Cntry,RANDBETWEEN(1,35))&\", \"&INDEX(Cntry,RANDBETWEEN(1,35))&\", \"&INDEX(Cntry,RANDBETWEEN(1,35))","v":"POR, IND, CHN, POR, AUS"},{"$f":"INDEX(LstNm,RANDBETWEEN(1,ROWS(LstNm)))","v":"Young"},{"$f":"INDEX(UpK,RANDBETWEEN(1,16))&INDEX(vowel,RANDBETWEEN(1,5))&INDEX(LoK,RANDBETWEEN(1,14))","v":"Wig"},{"$f":"INDEX(UpK,RANDBETWEEN(1,16))&INDEX(UpK,RANDBETWEEN(1,16))","v":"LJ"},97]
[null,{"$f":"INDEX(States,RANDBETWEEN(1,50))","v":"DE"},{"$f":"INDEX(Cntry,RANDBETWEEN(1,35))&\", \"&INDEX(Cntry,RANDBETWEEN(1,35))&\", \"&INDEX(Cntry,RANDBETWEEN(1,35))&\", \"&INDEX(Cntry,RANDBETWEEN(1,35))&\", \"&INDEX(Cntry,RANDBETWEEN(1,35))","v":"ISR, ITA, POR, FRA, SWE"},{"$f":"INDEX(LstNm,RANDBETWEEN(1,ROWS(LstNm)))","v":"Alexander"},{"$f":"INDEX(UpK,RANDBETWEEN(1,16))&INDEX(vowel,RANDBETWEEN(1,5))&INDEX(LoK,RANDBETWEEN(1,14))","v":"Hor"},{"$f":"INDEX(UpK,RANDBETWEEN(1,16))&INDEX(UpK,RANDBETWEEN(1,16))","v":"KS"},39]
[null,{"$f":"INDEX(States,RANDBETWEEN(1,50))","v":"VT"},{"$f":"INDEX(Cntry,RANDBETWEEN(1,35))&\", \"&INDEX(Cntry,RANDBETWEEN(1,35))&\", \"&INDEX(Cntry,RANDBETWEEN(1,35))&\", \"&INDEX(Cntry,RANDBETWEEN(1,35))&\", \"&INDEX(Cntry,RANDBETWEEN(1,35))","v":"ISR, IRL, BRA, DEN, GER"},{"$f":"INDEX(LstNm,RANDBETWEEN(1,ROWS(LstNm)))","v":"Bryant"},{"$f":"INDEX(UpK,RANDBETWEEN(1,16))&INDEX(vowel,RANDBETWEEN(1,5))&INDEX(LoK,RANDBETWEEN(1,14))","v":"Nov"},{"$f":"INDEX(UpK,RANDBETWEEN(1,16))&INDEX(UpK,RANDBETWEEN(1,16))","v":"RR"},46]
[null,{"$f":"INDEX(States,RANDBETWEEN(1,50))","v":"MA"},{"$f":"INDEX(Cntry,RANDBETWEEN(1,35))&\", \"&INDEX(Cntry,RANDBETWEEN(1,35))&\", \"&INDEX(Cntry,RANDBETWEEN(1,35))&\", \"&INDEX(Cntry,RANDBETWEEN(1,35))&\", \"&INDEX(Cntry,RANDBETWEEN(1,35))","v":"BEL, AUS, FIN, ESP, IND"},{"$f":"INDEX(LstNm,RANDBETWEEN(1,ROWS(LstNm)))","v":"Harris"},{"$f":"INDEX(UpK,RANDBETWEEN(1,16))&INDEX(vowel,RANDBETWEEN(1,5))&INDEX(LoK,RANDBETWEEN(1,14))","v":"Nib"},{"$f":"INDEX(UpK,RANDBETWEEN(1,16))&INDEX(UpK,RANDBETWEEN(1,16))","v":"HS"},93]
[null,{"$f":"INDEX(States,RANDBETWEEN(1,50))","v":"CA"},{"$f":"INDEX(Cntry,RANDBETWEEN(1,35))&\", \"&INDEX(Cntry,RANDBETWEEN(1,35))&\", \"&INDEX(Cntry,RANDBETWEEN(1,35))&\", \"&INDEX(Cntry,RANDBETWEEN(1,35))&\", \"&INDEX(Cntry,RANDBETWEEN(1,35))","v":"IRL, NED, BEL, CAN, JPN"},{"$f":"INDEX(LstNm,RANDBETWEEN(1,ROWS(LstNm)))","v":"Williams"},{"$f":"INDEX(UpK,RANDBETWEEN(1,16))&INDEX(vowel,RANDBETWEEN(1,5))&INDEX(LoK,RANDBETWEEN(1,14))","v":"Muh"},{"$f":"INDEX(UpK,RANDBETWEEN(1,16))&INDEX(UpK,RANDBETWEEN(1,16))","v":"RF"},65]
[null,{"$f":"INDEX(States,RANDBETWEEN(1,50))","v":"KS"},{"$f":"INDEX(Cntry,RANDBETWEEN(1,35))&\", \"&INDEX(Cntry,RANDBETWEEN(1,35))&\", \"&INDEX(Cntry,RANDBETWEEN(1,35))&\", \"&INDEX(Cntry,RANDBETWEEN(1,35))&\", \"&INDEX(Cntry,RANDBETWEEN(1,35))","v":"FIN, JPN, CZE, IRL, ITA"},{"$f":"INDEX(LstNm,RANDBETWEEN(1,ROWS(LstNm)))","v":"Hughes"},{"$f":"INDEX(UpK,RANDBETWEEN(1,16))&INDEX(vowel,RANDBETWEEN(1,5))&INDEX(LoK,RANDBETWEEN(1,14))","v":"Rus"},{"$f":"INDEX(UpK,RANDBETWEEN(1,16))&INDEX(UpK,RANDBETWEEN(1,16))","v":"KT"},57]
[null,{"$f":"INDEX(States,RANDBETWEEN(1,50))","v":"AK"},{"$f":"INDEX(Cntry,RANDBETWEEN(1,35))&\", \"&INDEX(Cntry,RANDBETWEEN(1,35))&\", \"&INDEX(Cntry,RANDBETWEEN(1,35))&\", \"&INDEX(Cntry,RANDBETWEEN(1,35))&\", \"&INDEX(Cntry,RANDBETWEEN(1,35))","v":"HUN, CHI, RUS, ISR, MEX"},{"$f":"INDEX(LstNm,RANDBETWEEN(1,ROWS(LstNm)))","v":"Howard"},{"$f":"INDEX(UpK,RANDBETWEEN(1,16))&INDEX(vowel,RANDBETWEEN(1,5))&INDEX(LoK,RANDBETWEEN(1,14))","v":"Vid"},{"$f":"INDEX(UpK,RANDBETWEEN(1,16))&INDEX(UpK,RANDBETWEEN(1,16))","v":"PF"},59]
[null,{"$f":"INDEX(States,RANDBETWEEN(1,50))","v":"ME"},{"$f":"INDEX(Cntry,RANDBETWEEN(1,35))&\", \"&INDEX(Cntry,RANDBETWEEN(1,35))&\", \"&INDEX(Cntry,RANDBETWEEN(1,35))&\", \"&INDEX(Cntry,RANDBETWEEN(1,35))&\", \"&INDEX(Cntry,RANDBETWEEN(1,35))","v":"ISR, ITA, RSA, JPN, GBR"},{"$f":"INDEX(LstNm,RANDBETWEEN(1,ROWS(LstNm)))","v":"Edwards"},{"$f":"INDEX(UpK,RANDBETWEEN(1,16))&INDEX(vowel,RANDBETWEEN(1,5))&INDEX(LoK,RANDBETWEEN(1,14))","v":"Jop"},{"$f":"INDEX(UpK,RANDBETWEEN(1,16))&INDEX(UpK,RANDBETWEEN(1,16))","v":"MP"},90]
[null,{"$f":"INDEX(States,RANDBETWEEN(1,50))","v":"ME"},{"$f":"INDEX(Cntry,RANDBETWEEN(1,35))&\", \"&INDEX(Cntry,RANDBETWEEN(1,35))&\", \"&INDEX(Cntry,RANDBETWEEN(1,35))&\", \"&INDEX(Cntry,RANDBETWEEN(1,35))&\", \"&INDEX(Cntry,RANDBETWEEN(1,35))","v":"HUN, DEN, POR, ISL, CHI"},{"$f":"INDEX(LstNm,RANDBETWEEN(1,ROWS(LstNm)))","v":"Johnson"},{"$f":"INDEX(UpK,RANDBETWEEN(1,16))&INDEX(vowel,RANDBETWEEN(1,5))&INDEX(LoK,RANDBETWEEN(1,14))","v":"Fan"},{"$f":"INDEX(UpK,RANDBETWEEN(1,16))&INDEX(UpK,RANDBETWEEN(1,16))","v":"ML"},68]
[null,{"$f":"INDEX(States,RANDBETWEEN(1,50))","v":"NM"},{"$f":"INDEX(Cntry,RANDBETWEEN(1,35))&\", \"&INDEX(Cntry,RANDBETWEEN(1,35))&\", \"&INDEX(Cntry,RANDBETWEEN(1,35))&\", \"&INDEX(Cntry,RANDBETWEEN(1,35))&\", \"&INDEX(Cntry,RANDBETWEEN(1,35))","v":"BRA, AUS, ITA, POR, SUI"},{"$f":"INDEX(LstNm,RANDBETWEEN(1,ROWS(LstNm)))","v":"Cook"},{"$f":"INDEX(UpK,RANDBETWEEN(1,16))&INDEX(vowel,RANDBETWEEN(1,5))&INDEX(LoK,RANDBETWEEN(1,14))","v":"Liv"},{"$f":"INDEX(UpK,RANDBETWEEN(1,16))&INDEX(UpK,RANDBETWEEN(1,16))","v":"TS"},83]
[null,{"$f":"INDEX(States,RANDBETWEEN(1,50))","v":"KS"},{"$f":"INDEX(Cntry,RANDBETWEEN(1,35))&\", \"&INDEX(Cntry,RANDBETWEEN(1,35))&\", \"&INDEX(Cntry,RANDBETWEEN(1,35))&\", \"&INDEX(Cntry,RANDBETWEEN(1,35))&\", \"&INDEX(Cntry,RANDBETWEEN(1,35))","v":"SUI, HUN, SWE, BEL, GBR"},{"$f":"INDEX(LstNm,RANDBETWEEN(1,ROWS(LstNm)))","v":"Smith"},{"$f":"INDEX(UpK,RANDBETWEEN(1,16))&INDEX(vowel,RANDBETWEEN(1,5))&INDEX(LoK,RANDBETWEEN(1,14))","v":"Rom"},{"$f":"INDEX(UpK,RANDBETWEEN(1,16))&INDEX(UpK,RANDBETWEEN(1,16))","v":"SD"},34]
[null,{"$f":"INDEX(States,RANDBETWEEN(1,50))","v":"HI"},{"$f":"INDEX(Cntry,RANDBETWEEN(1,35))&\", \"&INDEX(Cntry,RANDBETWEEN(1,35))&\", \"&INDEX(Cntry,RANDBETWEEN(1,35))&\", \"&INDEX(Cntry,RANDBETWEEN(1,35))&\", \"&INDEX(Cntry,RANDBETWEEN(1,35))","v":"EGY, SWE, IND, POR, ITA"},{"$f":"INDEX(LstNm,RANDBETWEEN(1,ROWS(LstNm)))","v":"Hicks"},{"$f":"INDEX(UpK,RANDBETWEEN(1,16))&INDEX(vowel,RANDBETWEEN(1,5))&INDEX(LoK,RANDBETWEEN(1,14))","v":"Bir"},{"$f":"INDEX(UpK,RANDBETWEEN(1,16))&INDEX(UpK,RANDBETWEEN(1,16))","v":"MP"},35]
[null,{"$f":"INDEX(States,RANDBETWEEN(1,50))","v":"AL"},{"$f":"INDEX(Cntry,RANDBETWEEN(1,35))&\", \"&INDEX(Cntry,RANDBETWEEN(1,35))&\", \"&INDEX(Cntry,RANDBETWEEN(1,35))&\", \"&INDEX(Cntry,RANDBETWEEN(1,35))&\", \"&INDEX(Cntry,RANDBETWEEN(1,35))","v":"POR, GBR, AUT, GBR, BRA"},{"$f":"INDEX(LstNm,RANDBETWEEN(1,ROWS(LstNm)))","v":"Gomez"},{"$f":"INDEX(UpK,RANDBETWEEN(1,16))&INDEX(vowel,RANDBETWEEN(1,5))&INDEX(LoK,RANDBETWEEN(1,14))","v":"Fus"},{"$f":"INDEX(UpK,RANDBETWEEN(1,16))&INDEX(UpK,RANDBETWEEN(1,16))","v":"TG"},69]
[null,{"$f":"INDEX(States,RANDBETWEEN(1,50))","v":"VA"},{"$f":"INDEX(Cntry,RANDBETWEEN(1,35))&\", \"&INDEX(Cntry,RANDBETWEEN(1,35))&\", \"&INDEX(Cntry,RANDBETWEEN(1,35))&\", \"&INDEX(Cntry,RANDBETWEEN(1,35))&\", \"&INDEX(Cntry,RANDBETWEEN(1,35))","v":"GBR, CHI, MEX, RSA, AUT"},{"$f":"INDEX(LstNm,RANDBETWEEN(1,ROWS(LstNm)))","v":"Crawford"},{"$f":"INDEX(UpK,RANDBETWEEN(1,16))&INDEX(vowel,RANDBETWEEN(1,5))&INDEX(LoK,RANDBETWEEN(1,14))","v":"Vob"},{"$f":"INDEX(UpK,RANDBETWEEN(1,16))&INDEX(UpK,RANDBETWEEN(1,16))","v":"NR"},95]
[null,{"$f":"INDEX(States,RANDBETWEEN(1,50))","v":"LA"},{"$f":"INDEX(Cntry,RANDBETWEEN(1,35))&\", \"&INDEX(Cntry,RANDBETWEEN(1,35))&\", \"&INDEX(Cntry,RANDBETWEEN(1,35))&\", \"&INDEX(Cntry,RANDBETWEEN(1,35))&\", \"&INDEX(Cntry,RANDBETWEEN(1,35))","v":"BEL, CHI, GER, IRL, RSA"},{"$f":"INDEX(LstNm,RANDBETWEEN(1,ROWS(LstNm)))","v":"Brown"},{"$f":"INDEX(UpK,RANDBETWEEN(1,16))&INDEX(vowel,RANDBETWEEN(1,5))&INDEX(LoK,RANDBETWEEN(1,14))","v":"Ret"},{"$f":"INDEX(UpK,RANDBETWEEN(1,16))&INDEX(UpK,RANDBETWEEN(1,16))","v":"FM"},54]
[null,{"$f":"INDEX(States,RANDBETWEEN(1,50))","v":"OK"},{"$f":"INDEX(Cntry,RANDBETWEEN(1,35))&\", \"&INDEX(Cntry,RANDBETWEEN(1,35))&\", \"&INDEX(Cntry,RANDBETWEEN(1,35))&\", \"&INDEX(Cntry,RANDBETWEEN(1,35))&\", \"&INDEX(Cntry,RANDBETWEEN(1,35))","v":"IRL, CAN, ISR, INA, POL"},{"$f":"INDEX(LstNm,RANDBETWEEN(1,ROWS(LstNm)))","v":"Martin"},{"$f":"INDEX(UpK,RANDBETWEEN(1,16))&INDEX(vowel,RANDBETWEEN(1,5))&INDEX(LoK,RANDBETWEEN(1,14))","v":"Fes"},{"$f":"INDEX(UpK,RANDBETWEEN(1,16))&INDEX(UpK,RANDBETWEEN(1,16))","v":"VG"},63]
[null,{"$f":"INDEX(States,RANDBETWEEN(1,50))","v":"IL"},{"$f":"INDEX(Cntry,RANDBETWEEN(1,35))&\", \"&INDEX(Cntry,RANDBETWEEN(1,35))&\", \"&INDEX(Cntry,RANDBETWEEN(1,35))&\", \"&INDEX(Cntry,RANDBETWEEN(1,35))&\", \"&INDEX(Cntry,RANDBETWEEN(1,35))","v":"POR, AUS, IRI, NED, ESP"},{"$f":"INDEX(LstNm,RANDBETWEEN(1,ROWS(LstNm)))","v":"Reed"},{"$f":"INDEX(UpK,RANDBETWEEN(1,16))&INDEX(vowel,RANDBETWEEN(1,5))&INDEX(LoK,RANDBETWEEN(1,14))","v":"Jap"},{"$f":"INDEX(UpK,RANDBETWEEN(1,16))&INDEX(UpK,RANDBETWEEN(1,16))","v":"KP"},81]
[null,{"$f":"INDEX(States,RANDBETWEEN(1,50))","v":"ND"},{"$f":"INDEX(Cntry,RANDBETWEEN(1,35))&\", \"&INDEX(Cntry,RANDBETWEEN(1,35))&\", \"&INDEX(Cntry,RANDBETWEEN(1,35))&\", \"&INDEX(Cntry,RANDBETWEEN(1,35))&\", \"&INDEX(Cntry,RANDBETWEEN(1,35))","v":"GER, GBR, MEX, CAN, FRA"},{"$f":"INDEX(LstNm,RANDBETWEEN(1,ROWS(LstNm)))","v":"Brown"},{"$f":"INDEX(UpK,RANDBETWEEN(1,16))&INDEX(vowel,RANDBETWEEN(1,5))&INDEX(LoK,RANDBETWEEN(1,14))","v":"Fen"},{"$f":"INDEX(UpK,RANDBETWEEN(1,16))&INDEX(UpK,RANDBETWEEN(1,16))","v":"KK"},95]
[null,{"$f":"INDEX(States,RANDBETWEEN(1,50))","v":"MO"},{"$f":"INDEX(Cntry,RANDBETWEEN(1,35))&\", \"&INDEX(Cntry,RANDBETWEEN(1,35))&\", \"&INDEX(Cntry,RANDBETWEEN(1,35))&\", \"&INDEX(Cntry,RANDBETWEEN(1,35))&\", \"&INDEX(Cntry,RANDBETWEEN(1,35))","v":"POL, CAN, INA, ARG, IND"},{"$f":"INDEX(LstNm,RANDBETWEEN(1,ROWS(LstNm)))","v":"Sanders"},{"$f":"INDEX(UpK,RANDBETWEEN(1,16))&INDEX(vowel,RANDBETWEEN(1,5))&INDEX(LoK,RANDBETWEEN(1,14))","v":"Sac"},{"$f":"INDEX(UpK,RANDBETWEEN(1,16))&INDEX(UpK,RANDBETWEEN(1,16))","v":"GV"},31]
[null,{"$f":"INDEX(States,RANDBETWEEN(1,50))","v":"SD"},{"$f":"INDEX(Cntry,RANDBETWEEN(1,35))&\", \"&INDEX(Cntry,RANDBETWEEN(1,35))&\", \"&INDEX(Cntry,RANDBETWEEN(1,35))&\", \"&INDEX(Cntry,RANDBETWEEN(1,35))&\", \"&INDEX(Cntry,RANDBETWEEN(1,35))","v":"DEN, ISL, SWE, FRA, MEX"},{"$f":"INDEX(LstNm,RANDBETWEEN(1,ROWS(LstNm)))","v":"Myers"},{"$f":"INDEX(UpK,RANDBETWEEN(1,16))&INDEX(vowel,RANDBETWEEN(1,5))&INDEX(LoK,RANDBETWEEN(1,14))","v":"Vit"},{"$f":"INDEX(UpK,RANDBETWEEN(1,16))&INDEX(UpK,RANDBETWEEN(1,16))","v":"FN"},36]
[null,{"$f":"INDEX(States,RANDBETWEEN(1,50))","v":"PA"},{"$f":"INDEX(Cntry,RANDBETWEEN(1,35))&\", \"&INDEX(Cntry,RANDBETWEEN(1,35))&\", \"&INDEX(Cntry,RANDBETWEEN(1,35))&\", \"&INDEX(Cntry,RANDBETWEEN(1,35))&\", \"&INDEX(Cntry,RANDBETWEEN(1,35))","v":"POR, FRA, POL, RUS, EGY"},{"$f":"INDEX(LstNm,RANDBETWEEN(1,ROWS(LstNm)))","v":"Woods"},{"$f":"INDEX(UpK,RANDBETWEEN(1,16))&INDEX(vowel,RANDBETWEEN(1,5))&INDEX(LoK,RANDBETWEEN(1,14))","v":"Pab"},{"$f":"INDEX(UpK,RANDBETWEEN(1,16))&INDEX(UpK,RANDBETWEEN(1,16))","v":"WR"},36]
[null,{"$f":"INDEX(States,RANDBETWEEN(1,50))","v":"FL"},{"$f":"INDEX(Cntry,RANDBETWEEN(1,35))&\", \"&INDEX(Cntry,RANDBETWEEN(1,35))&\", \"&INDEX(Cntry,RANDBETWEEN(1,35))&\", \"&INDEX(Cntry,RANDBETWEEN(1,35))&\", \"&INDEX(Cntry,RANDBETWEEN(1,35))","v":"ISR, EGY, GER, BRA, CHI"},{"$f":"INDEX(LstNm,RANDBETWEEN(1,ROWS(LstNm)))","v":"Miller"},{"$f":"INDEX(UpK,RANDBETWEEN(1,16))&INDEX(vowel,RANDBETWEEN(1,5))&INDEX(LoK,RANDBETWEEN(1,14))","v":"Gug"},{"$f":"INDEX(UpK,RANDBETWEEN(1,16))&INDEX(UpK,RANDBETWEEN(1,16))","v":"RS"},96]
[null,{"$f":"INDEX(States,RANDBETWEEN(1,50))","v":"IA"},{"$f":"INDEX(Cntry,RANDBETWEEN(1,35))&\", \"&INDEX(Cntry,RANDBETWEEN(1,35))&\", \"&INDEX(Cntry,RANDBETWEEN(1,35))&\", \"&INDEX(Cntry,RANDBETWEEN(1,35))&\", \"&INDEX(Cntry,RANDBETWEEN(1,35))","v":"EGY, ISL, JPN, AUS, CAN"},{"$f":"INDEX(LstNm,RANDBETWEEN(1,ROWS(LstNm)))","v":"Washington"},{"$f":"INDEX(UpK,RANDBETWEEN(1,16))&INDEX(vowel,RANDBETWEEN(1,5))&INDEX(LoK,RANDBETWEEN(1,14))","v":"Gac"},{"$f":"INDEX(UpK,RANDBETWEEN(1,16))&INDEX(UpK,RANDBETWEEN(1,16))","v":"WB"},13]
[null,{"$f":"INDEX(States,RANDBETWEEN(1,50))","v":"KS"},{"$f":"INDEX(Cntry,RANDBETWEEN(1,35))&\", \"&INDEX(Cntry,RANDBETWEEN(1,35))&\", \"&INDEX(Cntry,RANDBETWEEN(1,35))&\", \"&INDEX(Cntry,RANDBETWEEN(1,35))&\", \"&INDEX(Cntry,RANDBETWEEN(1,35))","v":"CAN, AUS, RSA, RSA, CHN"},{"$f":"INDEX(LstNm,RANDBETWEEN(1,ROWS(LstNm)))","v":"Henry"},{"$f":"INDEX(UpK,RANDBETWEEN(1,16))&INDEX(vowel,RANDBETWEEN(1,5))&INDEX(LoK,RANDBETWEEN(1,14))","v":"Dov"},{"$f":"INDEX(UpK,RANDBETWEEN(1,16))&INDEX(UpK,RANDBETWEEN(1,16))","v":"SG"},69]
[null,{"$f":"INDEX(States,RANDBETWEEN(1,50))","v":"NJ"},{"$f":"INDEX(Cntry,RANDBETWEEN(1,35))&\", \"&INDEX(Cntry,RANDBETWEEN(1,35))&\", \"&INDEX(Cntry,RANDBETWEEN(1,35))&\", \"&INDEX(Cntry,RANDBETWEEN(1,35))&\", \"&INDEX(Cntry,RANDBETWEEN(1,35))","v":"CAN, GRE, NOR, GER, HUN"},{"$f":"INDEX(LstNm,RANDBETWEEN(1,ROWS(LstNm)))","v":"Butler"},{"$f":"INDEX(UpK,RANDBETWEEN(1,16))&INDEX(vowel,RANDBETWEEN(1,5))&INDEX(LoK,RANDBETWEEN(1,14))","v":"Meg"},{"$f":"INDEX(UpK,RANDBETWEEN(1,16))&INDEX(UpK,RANDBETWEEN(1,16))","v":"WV"},98]
[null,{"$f":"INDEX(States,RANDBETWEEN(1,50))","v":"NJ"},{"$f":"INDEX(Cntry,RANDBETWEEN(1,35))&\", \"&INDEX(Cntry,RANDBETWEEN(1,35))&\", \"&INDEX(Cntry,RANDBETWEEN(1,35))&\", \"&INDEX(Cntry,RANDBETWEEN(1,35))&\", \"&INDEX(Cntry,RANDBETWEEN(1,35))","v":"RUS, ISR, NOR, ISR, CHI"},{"$f":"INDEX(LstNm,RANDBETWEEN(1,ROWS(LstNm)))","v":"Tucker"},{"$f":"INDEX(UpK,RANDBETWEEN(1,16))&INDEX(vowel,RANDBETWEEN(1,5))&INDEX(LoK,RANDBETWEEN(1,14))","v":"Sik"},{"$f":"INDEX(UpK,RANDBETWEEN(1,16))&INDEX(UpK,RANDBETWEEN(1,16))","v":"PT"},67]
[null,{"$f":"INDEX(States,RANDBETWEEN(1,50))","v":"WI"},{"$f":"INDEX(Cntry,RANDBETWEEN(1,35))&\", \"&INDEX(Cntry,RANDBETWEEN(1,35))&\", \"&INDEX(Cntry,RANDBETWEEN(1,35))&\", \"&INDEX(Cntry,RANDBETWEEN(1,35))&\", \"&INDEX(Cntry,RANDBETWEEN(1,35))","v":"AUS, BRA, FIN, EGY, CHI"},{"$f":"INDEX(LstNm,RANDBETWEEN(1,ROWS(LstNm)))","v":"Hicks"},{"$f":"INDEX(UpK,RANDBETWEEN(1,16))&INDEX(vowel,RANDBETWEEN(1,5))&INDEX(LoK,RANDBETWEEN(1,14))","v":"Toc"},{"$f":"INDEX(UpK,RANDBETWEEN(1,16))&INDEX(UpK,RANDBETWEEN(1,16))","v":"WP"},67]
[null,{"$f":"INDEX(States,RANDBETWEEN(1,50))","v":"MT"},{"$f":"INDEX(Cntry,RANDBETWEEN(1,35))&\", \"&INDEX(Cntry,RANDBETWEEN(1,35))&\", \"&INDEX(Cntry,RANDBETWEEN(1,35))&\", \"&INDEX(Cntry,RANDBETWEEN(1,35))&\", \"&INDEX(Cntry,RANDBETWEEN(1,35))","v":"MEX, HUN, GRE, ARG, IRI"},{"$f":"INDEX(LstNm,RANDBETWEEN(1,ROWS(LstNm)))","v":"Ortiz"},{"$f":"INDEX(UpK,RANDBETWEEN(1,16))&INDEX(vowel,RANDBETWEEN(1,5))&INDEX(LoK,RANDBETWEEN(1,14))","v":"Rov"},{"$f":"INDEX(UpK,RANDBETWEEN(1,16))&INDEX(UpK,RANDBETWEEN(1,16))","v":"LM"},37]
[null,{"$f":"INDEX(States,RANDBETWEEN(1,50))","v":"PA"},{"$f":"INDEX(Cntry,RANDBETWEEN(1,35))&\", \"&INDEX(Cntry,RANDBETWEEN(1,35))&\", \"&INDEX(Cntry,RANDBETWEEN(1,35))&\", \"&INDEX(Cntry,RANDBETWEEN(1,35))&\", \"&INDEX(Cntry,RANDBETWEEN(1,35))","v":"GER, AUS, BRA, ISL, ISR"},{"$f":"INDEX(LstNm,RANDBETWEEN(1,ROWS(LstNm)))","v":"Turner"},{"$f":"INDEX(UpK,RANDBETWEEN(1,16))&INDEX(vowel,RANDBETWEEN(1,5))&INDEX(LoK,RANDBETWEEN(1,14))","v":"Kok"},{"$f":"INDEX(UpK,RANDBETWEEN(1,16))&INDEX(UpK,RANDBETWEEN(1,16))","v":"MN"},77]
[null,{"$f":"INDEX(States,RANDBETWEEN(1,50))","v":"MD"},{"$f":"INDEX(Cntry,RANDBETWEEN(1,35))&\", \"&INDEX(Cntry,RANDBETWEEN(1,35))&\", \"&INDEX(Cntry,RANDBETWEEN(1,35))&\", \"&INDEX(Cntry,RANDBETWEEN(1,35))&\", \"&INDEX(Cntry,RANDBETWEEN(1,35))","v":"NOR, HUN, JPN, CZE, BEL"},{"$f":"INDEX(LstNm,RANDBETWEEN(1,ROWS(LstNm)))","v":"King"},{"$f":"INDEX(UpK,RANDBETWEEN(1,16))&INDEX(vowel,RANDBETWEEN(1,5))&INDEX(LoK,RANDBETWEEN(1,14))","v":"Vob"},{"$f":"INDEX(UpK,RANDBETWEEN(1,16))&INDEX(UpK,RANDBETWEEN(1,16))","v":"WG"},19]
[null,{"$f":"INDEX(States,RANDBETWEEN(1,50))","v":"MS"},{"$f":"INDEX(Cntry,RANDBETWEEN(1,35))&\", \"&INDEX(Cntry,RANDBETWEEN(1,35))&\", \"&INDEX(Cntry,RANDBETWEEN(1,35))&\", \"&INDEX(Cntry,RANDBETWEEN(1,35))&\", \"&INDEX(Cntry,RANDBETWEEN(1,35))","v":"ISR, ESP, FIN, EGY, HUN"},{"$f":"INDEX(LstNm,RANDBETWEEN(1,ROWS(LstNm)))","v":"Wells"},{"$f":"INDEX(UpK,RANDBETWEEN(1,16))&INDEX(vowel,RANDBETWEEN(1,5))&INDEX(LoK,RANDBETWEEN(1,14))","v":"Vip"},{"$f":"INDEX(UpK,RANDBETWEEN(1,16))&INDEX(UpK,RANDBETWEEN(1,16))","v":"NT"},26]
[null,{"$f":"INDEX(States,RANDBETWEEN(1,50))","v":"MI"},{"$f":"INDEX(Cntry,RANDBETWEEN(1,35))&\", \"&INDEX(Cntry,RANDBETWEEN(1,35))&\", \"&INDEX(Cntry,RANDBETWEEN(1,35))&\", \"&INDEX(Cntry,RANDBETWEEN(1,35))&\", \"&INDEX(Cntry,RANDBETWEEN(1,35))","v":"ARG, ARG, CAN, CHI, RSA"},{"$f":"INDEX(LstNm,RANDBETWEEN(1,ROWS(LstNm)))","v":"Flores"},{"$f":"INDEX(UpK,RANDBETWEEN(1,16))&INDEX(vowel,RANDBETWEEN(1,5))&INDEX(LoK,RANDBETWEEN(1,14))","v":"Vun"},{"$f":"INDEX(UpK,RANDBETWEEN(1,16))&INDEX(UpK,RANDBETWEEN(1,16))","v":"GP"},27]
[null,{"$f":"INDEX(States,RANDBETWEEN(1,50))","v":"TX"},{"$f":"INDEX(Cntry,RANDBETWEEN(1,35))&\", \"&INDEX(Cntry,RANDBETWEEN(1,35))&\", \"&INDEX(Cntry,RANDBETWEEN(1,35))&\", \"&INDEX(Cntry,RANDBETWEEN(1,35))&\", \"&INDEX(Cntry,RANDBETWEEN(1,35))","v":"CAN, ISR, BRA, GBR, SWE"},{"$f":"INDEX(LstNm,RANDBETWEEN(1,ROWS(LstNm)))","v":"Freeman"},{"$f":"INDEX(UpK,RANDBETWEEN(1,16))&INDEX(vowel,RANDBETWEEN(1,5))&INDEX(LoK,RANDBETWEEN(1,14))","v":"Fet"},{"$f":"INDEX(UpK,RANDBETWEEN(1,16))&INDEX(UpK,RANDBETWEEN(1,16))","v":"RF"},86]
[null,{"$f":"INDEX(States,RANDBETWEEN(1,50))","v":"PA"},{"$f":"INDEX(Cntry,RANDBETWEEN(1,35))&\", \"&INDEX(Cntry,RANDBETWEEN(1,35))&\", \"&INDEX(Cntry,RANDBETWEEN(1,35))&\", \"&INDEX(Cntry,RANDBETWEEN(1,35))&\", \"&INDEX(Cntry,RANDBETWEEN(1,35))","v":"IND, CHI, GER, JPN, NED"},{"$f":"INDEX(LstNm,RANDBETWEEN(1,ROWS(LstNm)))","v":"Roberts"},{"$f":"INDEX(UpK,RANDBETWEEN(1,16))&INDEX(vowel,RANDBETWEEN(1,5))&INDEX(LoK,RANDBETWEEN(1,14))","v":"Giv"},{"$f":"INDEX(UpK,RANDBETWEEN(1,16))&INDEX(UpK,RANDBETWEEN(1,16))","v":"BB"},23]
[null,{"$f":"INDEX(States,RANDBETWEEN(1,50))","v":"TN"},{"$f":"INDEX(Cntry,RANDBETWEEN(1,35))&\", \"&INDEX(Cntry,RANDBETWEEN(1,35))&\", \"&INDEX(Cntry,RANDBETWEEN(1,35))&\", \"&INDEX(Cntry,RANDBETWEEN(1,35))&\", \"&INDEX(Cntry,RANDBETWEEN(1,35))","v":"EGY, ARG, CHI, CHI, MEX"},{"$f":"INDEX(LstNm,RANDBETWEEN(1,ROWS(LstNm)))","v":"Flores"},{"$f":"INDEX(UpK,RANDBETWEEN(1,16))&INDEX(vowel,RANDBETWEEN(1,5))&INDEX(LoK,RANDBETWEEN(1,14))","v":"Jan"},{"$f":"INDEX(UpK,RANDBETWEEN(1,16))&INDEX(UpK,RANDBETWEEN(1,16))","v":"KF"},67]
[null,{"$f":"INDEX(States,RANDBETWEEN(1,50))","v":"MI"},{"$f":"INDEX(Cntry,RANDBETWEEN(1,35))&\", \"&INDEX(Cntry,RANDBETWEEN(1,35))&\", \"&INDEX(Cntry,RANDBETWEEN(1,35))&\", \"&INDEX(Cntry,RANDBETWEEN(1,35))&\", \"&INDEX(Cntry,RANDBETWEEN(1,35))","v":"IRL, NED, AUT, ARG, ARG"},{"$f":"INDEX(LstNm,RANDBETWEEN(1,ROWS(LstNm)))","v":"Nelson"},{"$f":"INDEX(UpK,RANDBETWEEN(1,16))&INDEX(vowel,RANDBETWEEN(1,5))&INDEX(LoK,RANDBETWEEN(1,14))","v":"Ven"},{"$f":"INDEX(UpK,RANDBETWEEN(1,16))&INDEX(UpK,RANDBETWEEN(1,16))","v":"HT"},55]
[null,{"$f":"INDEX(States,RANDBETWEEN(1,50))","v":"WI"},{"$f":"INDEX(Cntry,RANDBETWEEN(1,35))&\", \"&INDEX(Cntry,RANDBETWEEN(1,35))&\", \"&INDEX(Cntry,RANDBETWEEN(1,35))&\", \"&INDEX(Cntry,RANDBETWEEN(1,35))&\", \"&INDEX(Cntry,RANDBETWEEN(1,35))","v":"BRA, INA, NOR, GER, FIN"},{"$f":"INDEX(LstNm,RANDBETWEEN(1,ROWS(LstNm)))","v":"Moore"},{"$f":"INDEX(UpK,RANDBETWEEN(1,16))&INDEX(vowel,RANDBETWEEN(1,5))&INDEX(LoK,RANDBETWEEN(1,14))","v":"Tin"},{"$f":"INDEX(UpK,RANDBETWEEN(1,16))&INDEX(UpK,RANDBETWEEN(1,16))","v":"SH"},48]
[null,{"$f":"INDEX(States,RANDBETWEEN(1,50))","v":"WV"},{"$f":"INDEX(Cntry,RANDBETWEEN(1,35))&\", \"&INDEX(Cntry,RANDBETWEEN(1,35))&\", \"&INDEX(Cntry,RANDBETWEEN(1,35))&\", \"&INDEX(Cntry,RANDBETWEEN(1,35))&\", \"&INDEX(Cntry,RANDBETWEEN(1,35))","v":"FRA, CZE, CHI, CAN, FRA"},{"$f":"INDEX(LstNm,RANDBETWEEN(1,ROWS(LstNm)))","v":"Martin"},{"$f":"INDEX(UpK,RANDBETWEEN(1,16))&INDEX(vowel,RANDBETWEEN(1,5))&INDEX(LoK,RANDBETWEEN(1,14))","v":"Ros"},{"$f":"INDEX(UpK,RANDBETWEEN(1,16))&INDEX(UpK,RANDBETWEEN(1,16))","v":"NH"},83]
[null,{"$f":"INDEX(States,RANDBETWEEN(1,50))","v":"AL"},{"$f":"INDEX(Cntry,RANDBETWEEN(1,35))&\", \"&INDEX(Cntry,RANDBETWEEN(1,35))&\", \"&INDEX(Cntry,RANDBETWEEN(1,35))&\", \"&INDEX(Cntry,RANDBETWEEN(1,35))&\", \"&INDEX(Cntry,RANDBETWEEN(1,35))","v":"IND, ISR, SUI, HUN, MEX"},{"$f":"INDEX(LstNm,RANDBETWEEN(1,ROWS(LstNm)))","v":"Reynolds"},{"$f":"INDEX(UpK,RANDBETWEEN(1,16))&INDEX(vowel,RANDBETWEEN(1,5))&INDEX(LoK,RANDBETWEEN(1,14))","v":"Hop"},{"$f":"INDEX(UpK,RANDBETWEEN(1,16))&INDEX(UpK,RANDBETWEEN(1,16))","v":"MF"},24]
[null,{"$f":"INDEX(States,RANDBETWEEN(1,50))","v":"MS"},{"$f":"INDEX(Cntry,RANDBETWEEN(1,35))&\", \"&INDEX(Cntry,RANDBETWEEN(1,35))&\", \"&INDEX(Cntry,RANDBETWEEN(1,35))&\", \"&INDEX(Cntry,RANDBETWEEN(1,35))&\", \"&INDEX(Cntry,RANDBETWEEN(1,35))","v":"ARG, CAN, IRL, GRE, SWE"},{"$f":"INDEX(LstNm,RANDBETWEEN(1,ROWS(LstNm)))","v":"Freeman"},{"$f":"INDEX(UpK,RANDBETWEEN(1,16))&INDEX(vowel,RANDBETWEEN(1,5))&INDEX(LoK,RANDBETWEEN(1,14))","v":"Ret"},{"$f":"INDEX(UpK,RANDBETWEEN(1,16))&INDEX(UpK,RANDBETWEEN(1,16))","v":"DF"},63]
[null,{"$f":"INDEX(States,RANDBETWEEN(1,50))","v":"TX"},{"$f":"INDEX(Cntry,RANDBETWEEN(1,35))&\", \"&INDEX(Cntry,RANDBETWEEN(1,35))&\", \"&INDEX(Cntry,RANDBETWEEN(1,35))&\", \"&INDEX(Cntry,RANDBETWEEN(1,35))&\", \"&INDEX(Cntry,RANDBETWEEN(1,35))","v":"AUS, ARG, AUT, CHN, RUS"},{"$f":"INDEX(LstNm,RANDBETWEEN(1,ROWS(LstNm)))","v":"Sanchez"},{"$f":"INDEX(UpK,RANDBETWEEN(1,16))&INDEX(vowel,RANDBETWEEN(1,5))&INDEX(LoK,RANDBETWEEN(1,14))","v":"Big"},{"$f":"INDEX(UpK,RANDBETWEEN(1,16))&INDEX(UpK,RANDBETWEEN(1,16))","v":"BP"},45]
[null,{"$f":"INDEX(States,RANDBETWEEN(1,50))","v":"IL"},{"$f":"INDEX(Cntry,RANDBETWEEN(1,35))&\", \"&INDEX(Cntry,RANDBETWEEN(1,35))&\", \"&INDEX(Cntry,RANDBETWEEN(1,35))&\", \"&INDEX(Cntry,RANDBETWEEN(1,35))&\", \"&INDEX(Cntry,RANDBETWEEN(1,35))","v":"CHI, FRA, CHI, CHN, SWE"},{"$f":"INDEX(LstNm,RANDBETWEEN(1,ROWS(LstNm)))","v":"Henderson"},{"$f":"INDEX(UpK,RANDBETWEEN(1,16))&INDEX(vowel,RANDBETWEEN(1,5))&INDEX(LoK,RANDBETWEEN(1,14))","v":"Web"},{"$f":"INDEX(UpK,RANDBETWEEN(1,16))&INDEX(UpK,RANDBETWEEN(1,16))","v":"LK"},75]
[null,{"$f":"INDEX(States,RANDBETWEEN(1,50))","v":"IL"},{"$f":"INDEX(Cntry,RANDBETWEEN(1,35))&\", \"&INDEX(Cntry,RANDBETWEEN(1,35))&\", \"&INDEX(Cntry,RANDBETWEEN(1,35))&\", \"&INDEX(Cntry,RANDBETWEEN(1,35))&\", \"&INDEX(Cntry,RANDBETWEEN(1,35))","v":"DEN, BRA, ITA, GER, JPN"},{"$f":"INDEX(LstNm,RANDBETWEEN(1,ROWS(LstNm)))","v":"Richardson"},{"$f":"INDEX(UpK,RANDBETWEEN(1,16))&INDEX(vowel,RANDBETWEEN(1,5))&INDEX(LoK,RANDBETWEEN(1,14))","v":"Kus"},{"$f":"INDEX(UpK,RANDBETWEEN(1,16))&INDEX(UpK,RANDBETWEEN(1,16))","v":"DV"},16]
[null,{"$f":"INDEX(States,RANDBETWEEN(1,50))","v":"VA"},{"$f":"INDEX(Cntry,RANDBETWEEN(1,35))&\", \"&INDEX(Cntry,RANDBETWEEN(1,35))&\", \"&INDEX(Cntry,RANDBETWEEN(1,35))&\", \"&INDEX(Cntry,RANDBETWEEN(1,35))&\", \"&INDEX(Cntry,RANDBETWEEN(1,35))","v":"DEN, AUS, NED, ISL, FRA"},{"$f":"INDEX(LstNm,RANDBETWEEN(1,ROWS(LstNm)))","v":"Ramirez"},{"$f":"INDEX(UpK,RANDBETWEEN(1,16))&INDEX(vowel,RANDBETWEEN(1,5))&INDEX(LoK,RANDBETWEEN(1,14))","v":"Pum"},{"$f":"INDEX(UpK,RANDBETWEEN(1,16))&INDEX(UpK,RANDBETWEEN(1,16))","v":"RK"},55]
[null,{"$f":"INDEX(States,RANDBETWEEN(1,50))","v":"VA"},{"$f":"INDEX(Cntry,RANDBETWEEN(1,35))&\", \"&INDEX(Cntry,RANDBETWEEN(1,35))&\", \"&INDEX(Cntry,RANDBETWEEN(1,35))&\", \"&INDEX(Cntry,RANDBETWEEN(1,35))&\", \"&INDEX(Cntry,RANDBETWEEN(1,35))","v":"CHN, POR, MEX, ESP, ISR"},{"$f":"INDEX(LstNm,RANDBETWEEN(1,ROWS(LstNm)))","v":"Griffin"},{"$f":"INDEX(UpK,RANDBETWEEN(1,16))&INDEX(vowel,RANDBETWEEN(1,5))&INDEX(LoK,RANDBETWEEN(1,14))","v":"Jut"},{"$f":"INDEX(UpK,RANDBETWEEN(1,16))&INDEX(UpK,RANDBETWEEN(1,16))","v":"VF"},51]
[null,{"$f":"INDEX(States,RANDBETWEEN(1,50))","v":"OK"},{"$f":"INDEX(Cntry,RANDBETWEEN(1,35))&\", \"&INDEX(Cntry,RANDBETWEEN(1,35))&\", \"&INDEX(Cntry,RANDBETWEEN(1,35))&\", \"&INDEX(Cntry,RANDBETWEEN(1,35))&\", \"&INDEX(Cntry,RANDBETWEEN(1,35))","v":"FIN, AUT, GRE, ISR, JPN"},{"$f":"INDEX(LstNm,RANDBETWEEN(1,ROWS(LstNm)))","v":"Russell"},{"$f":"INDEX(UpK,RANDBETWEEN(1,16))&INDEX(vowel,RANDBETWEEN(1,5))&INDEX(LoK,RANDBETWEEN(1,14))","v":"Lum"},{"$f":"INDEX(UpK,RANDBETWEEN(1,16))&INDEX(UpK,RANDBETWEEN(1,16))","v":"BN"},49]
[null,{"$f":"INDEX(States,RANDBETWEEN(1,50))","v":"WY"},{"$f":"INDEX(Cntry,RANDBETWEEN(1,35))&\", \"&INDEX(Cntry,RANDBETWEEN(1,35))&\", \"&INDEX(Cntry,RANDBETWEEN(1,35))&\", \"&INDEX(Cntry,RANDBETWEEN(1,35))&\", \"&INDEX(Cntry,RANDBETWEEN(1,35))","v":"MEX, FRA, DEN, GER, CHI"},{"$f":"INDEX(LstNm,RANDBETWEEN(1,ROWS(LstNm)))","v":"Walker"},{"$f":"INDEX(UpK,RANDBETWEEN(1,16))&INDEX(vowel,RANDBETWEEN(1,5))&INDEX(LoK,RANDBETWEEN(1,14))","v":"Pif"},{"$f":"INDEX(UpK,RANDBETWEEN(1,16))&INDEX(UpK,RANDBETWEEN(1,16))","v":"HB"},15]
[null,{"$f":"INDEX(States,RANDBETWEEN(1,50))","v":"AR"},{"$f":"INDEX(Cntry,RANDBETWEEN(1,35))&\", \"&INDEX(Cntry,RANDBETWEEN(1,35))&\", \"&INDEX(Cntry,RANDBETWEEN(1,35))&\", \"&INDEX(Cntry,RANDBETWEEN(1,35))&\", \"&INDEX(Cntry,RANDBETWEEN(1,35))","v":"AUS, SWE, NED, CHI, INA"},{"$f":"INDEX(LstNm,RANDBETWEEN(1,ROWS(LstNm)))","v":"Carter"},{"$f":"INDEX(UpK,RANDBETWEEN(1,16))&INDEX(vowel,RANDBETWEEN(1,5))&INDEX(LoK,RANDBETWEEN(1,14))","v":"Hov"},{"$f":"INDEX(UpK,RANDBETWEEN(1,16))&INDEX(UpK,RANDBETWEEN(1,16))","v":"DG"},45]
[null,{"$f":"INDEX(States,RANDBETWEEN(1,50))","v":"TX"},{"$f":"INDEX(Cntry,RANDBETWEEN(1,35))&\", \"&INDEX(Cntry,RANDBETWEEN(1,35))&\", \"&INDEX(Cntry,RANDBETWEEN(1,35))&\", \"&INDEX(Cntry,RANDBETWEEN(1,35))&\", \"&INDEX(Cntry,RANDBETWEEN(1,35))","v":"NED, SWE, ARG, AUS, AUS"},{"$f":"INDEX(LstNm,RANDBETWEEN(1,ROWS(LstNm)))","v":"Turner"},{"$f":"INDEX(UpK,RANDBETWEEN(1,16))&INDEX(vowel,RANDBETWEEN(1,5))&INDEX(LoK,RANDBETWEEN(1,14))","v":"Bog"},{"$f":"INDEX(UpK,RANDBETWEEN(1,16))&INDEX(UpK,RANDBETWEEN(1,16))","v":"LL"},39]
[null,{"$f":"INDEX(States,RANDBETWEEN(1,50))","v":"NM"},{"$f":"INDEX(Cntry,RANDBETWEEN(1,35))&\", \"&INDEX(Cntry,RANDBETWEEN(1,35))&\", \"&INDEX(Cntry,RANDBETWEEN(1,35))&\", \"&INDEX(Cntry,RANDBETWEEN(1,35))&\", \"&INDEX(Cntry,RANDBETWEEN(1,35))","v":"JPN, GER, INA, GER, CZE"},{"$f":"INDEX(LstNm,RANDBETWEEN(1,ROWS(LstNm)))","v":"Mason"},{"$f":"INDEX(UpK,RANDBETWEEN(1,16))&INDEX(vowel,RANDBETWEEN(1,5))&INDEX(LoK,RANDBETWEEN(1,14))","v":"Rer"},{"$f":"INDEX(UpK,RANDBETWEEN(1,16))&INDEX(UpK,RANDBETWEEN(1,16))","v":"HF"},{"$f":"RANDBETWEEN(10,99)","v":98}]
[null,{"$f":"INDEX(States,RANDBETWEEN(1,50))","v":"OK"},{"$f":"INDEX(Cntry,RANDBETWEEN(1,35))&\", \"&INDEX(Cntry,RANDBETWEEN(1,35))&\", \"&INDEX(Cntry,RANDBETWEEN(1,35))&\", \"&INDEX(Cntry,RANDBETWEEN(1,35))&\", \"&INDEX(Cntry,RANDBETWEEN(1,35))","v":"HUN, CAN, AUS, POL, FIN"},{"$f":"INDEX(LstNm,RANDBETWEEN(1,ROWS(LstNm)))","v":"Cox"},{"$f":"INDEX(UpK,RANDBETWEEN(1,16))&INDEX(vowel,RANDBETWEEN(1,5))&INDEX(LoK,RANDBETWEEN(1,14))","v":"Kum"},{"$f":"INDEX(UpK,RANDBETWEEN(1,16))&INDEX(UpK,RANDBETWEEN(1,16))","v":"HM"},29]
[null,{"$f":"INDEX(States,RANDBETWEEN(1,50))","v":"SC"},{"$f":"INDEX(Cntry,RANDBETWEEN(1,35))&\", \"&INDEX(Cntry,RANDBETWEEN(1,35))&\", \"&INDEX(Cntry,RANDBETWEEN(1,35))&\", \"&INDEX(Cntry,RANDBETWEEN(1,35))&\", \"&INDEX(Cntry,RANDBETWEEN(1,35))","v":"SUI, POL, GRE, CHI, FIN"},{"$f":"INDEX(LstNm,RANDBETWEEN(1,ROWS(LstNm)))","v":"Johnson"},{"$f":"INDEX(UpK,RANDBETWEEN(1,16))&INDEX(vowel,RANDBETWEEN(1,5))&INDEX(LoK,RANDBETWEEN(1,14))","v":"Hec"},{"$f":"INDEX(UpK,RANDBETWEEN(1,16))&INDEX(UpK,RANDBETWEEN(1,16))","v":"NV"},10]
[null,{"$f":"INDEX(States,RANDBETWEEN(1,50))","v":"WI"},{"$f":"INDEX(Cntry,RANDBETWEEN(1,35))&\", \"&INDEX(Cntry,RANDBETWEEN(1,35))&\", \"&INDEX(Cntry,RANDBETWEEN(1,35))&\", \"&INDEX(Cntry,RANDBETWEEN(1,35))&\", \"&INDEX(Cntry,RANDBETWEEN(1,35))","v":"POR, DEN, JPN, FRA, HUN"},{"$f":"INDEX(LstNm,RANDBETWEEN(1,ROWS(LstNm)))","v":"Flores"},{"$f":"INDEX(UpK,RANDBETWEEN(1,16))&INDEX(vowel,RANDBETWEEN(1,5))&INDEX(LoK,RANDBETWEEN(1,14))","v":"Wuf"},{"$f":"INDEX(UpK,RANDBETWEEN(1,16))&INDEX(UpK,RANDBETWEEN(1,16))","v":"DG"},26]
[null,{"$f":"INDEX(States,RANDBETWEEN(1,50))","v":"MS"},{"$f":"INDEX(Cntry,RANDBETWEEN(1,35))&\", \"&INDEX(Cntry,RANDBETWEEN(1,35))&\", \"&INDEX(Cntry,RANDBETWEEN(1,35))&\", \"&INDEX(Cntry,RANDBETWEEN(1,35))&\", \"&INDEX(Cntry,RANDBETWEEN(1,35))","v":"CZE, IRL, DEN, RSA, INA"},{"$f":"INDEX(LstNm,RANDBETWEEN(1,ROWS(LstNm)))","v":"Hicks"},{"$f":"INDEX(UpK,RANDBETWEEN(1,16))&INDEX(vowel,RANDBETWEEN(1,5))&INDEX(LoK,RANDBETWEEN(1,14))","v":"Hab"},{"$f":"INDEX(UpK,RANDBETWEEN(1,16))&INDEX(UpK,RANDBETWEEN(1,16))","v":"NR"},35]
[null,{"$f":"INDEX(States,RANDBETWEEN(1,50))","v":"MS"},{"$f":"INDEX(Cntry,RANDBETWEEN(1,35))&\", \"&INDEX(Cntry,RANDBETWEEN(1,35))&\", \"&INDEX(Cntry,RANDBETWEEN(1,35))&\", \"&INDEX(Cntry,RANDBETWEEN(1,35))&\", \"&INDEX(Cntry,RANDBETWEEN(1,35))","v":"SWE, CZE, GER, GRE, ITA"},{"$f":"INDEX(LstNm,RANDBETWEEN(1,ROWS(LstNm)))","v":"Williams"},{"$f":"INDEX(UpK,RANDBETWEEN(1,16))&INDEX(vowel,RANDBETWEEN(1,5))&INDEX(LoK,RANDBETWEEN(1,14))","v":"Vag"},{"$f":"INDEX(UpK,RANDBETWEEN(1,16))&INDEX(UpK,RANDBETWEEN(1,16))","v":"VV"},98]
[null,{"$f":"INDEX(States,RANDBETWEEN(1,50))","v":"MN"},{"$f":"INDEX(Cntry,RANDBETWEEN(1,35))&\", \"&INDEX(Cntry,RANDBETWEEN(1,35))&\", \"&INDEX(Cntry,RANDBETWEEN(1,35))&\", \"&INDEX(Cntry,RANDBETWEEN(1,35))&\", \"&INDEX(Cntry,RANDBETWEEN(1,35))","v":"SWE, NED, DEN, SUI, AUT"},{"$f":"INDEX(LstNm,RANDBETWEEN(1,ROWS(LstNm)))","v":"Evans"},{"$f":"INDEX(UpK,RANDBETWEEN(1,16))&INDEX(vowel,RANDBETWEEN(1,5))&INDEX(LoK,RANDBETWEEN(1,14))","v":"Weg"},{"$f":"INDEX(UpK,RANDBETWEEN(1,16))&INDEX(UpK,RANDBETWEEN(1,16))","v":"MD"},50]
[null,{"$f":"INDEX(States,RANDBETWEEN(1,50))","v":"AK"},{"$f":"INDEX(Cntry,RANDBETWEEN(1,35))&\", \"&INDEX(Cntry,RANDBETWEEN(1,35))&\", \"&INDEX(Cntry,RANDBETWEEN(1,35))&\", \"&INDEX(Cntry,RANDBETWEEN(1,35))&\", \"&INDEX(Cntry,RANDBETWEEN(1,35))","v":"EGY, FRA, RUS, ESP, POL"},{"$f":"INDEX(LstNm,RANDBETWEEN(1,ROWS(LstNm)))","v":"Russell"},{"$f":"INDEX(UpK,RANDBETWEEN(1,16))&INDEX(vowel,RANDBETWEEN(1,5))&INDEX(LoK,RANDBETWEEN(1,14))","v":"Wog"},{"$f":"INDEX(UpK,RANDBETWEEN(1,16))&INDEX(UpK,RANDBETWEEN(1,16))","v":"LJ"},89]
[null,{"$f":"INDEX(States,RANDBETWEEN(1,50))","v":"WY"},{"$f":"INDEX(Cntry,RANDBETWEEN(1,35))&\", \"&INDEX(Cntry,RANDBETWEEN(1,35))&\", \"&INDEX(Cntry,RANDBETWEEN(1,35))&\", \"&INDEX(Cntry,RANDBETWEEN(1,35))&\", \"&INDEX(Cntry,RANDBETWEEN(1,35))","v":"EGY, IRI, FRA, ITA, ISR"},{"$f":"INDEX(LstNm,RANDBETWEEN(1,ROWS(LstNm)))","v":"Diaz"},{"$f":"INDEX(UpK,RANDBETWEEN(1,16))&INDEX(vowel,RANDBETWEEN(1,5))&INDEX(LoK,RANDBETWEEN(1,14))","v":"Kam"},{"$f":"INDEX(UpK,RANDBETWEEN(1,16))&INDEX(UpK,RANDBETWEEN(1,16))","v":"HR"},76]
[null,{"$f":"INDEX(States,RANDBETWEEN(1,50))","v":"OR"},{"$f":"INDEX(Cntry,RANDBETWEEN(1,35))&\", \"&INDEX(Cntry,RANDBETWEEN(1,35))&\", \"&INDEX(Cntry,RANDBETWEEN(1,35))&\", \"&INDEX(Cntry,RANDBETWEEN(1,35))&\", \"&INDEX(Cntry,RANDBETWEEN(1,35))","v":"RUS, POL, ESP, JPN, ISL"},{"$f":"INDEX(LstNm,RANDBETWEEN(1,ROWS(LstNm)))","v":"Marshall"},{"$f":"INDEX(UpK,RANDBETWEEN(1,16))&INDEX(vowel,RANDBETWEEN(1,5))&INDEX(LoK,RANDBETWEEN(1,14))","v":"Tuf"},{"$f":"INDEX(UpK,RANDBETWEEN(1,16))&INDEX(UpK,RANDBETWEEN(1,16))","v":"MJ"},20]
[null,{"$f":"INDEX(States,RANDBETWEEN(1,50))","v":"MS"},{"$f":"INDEX(Cntry,RANDBETWEEN(1,35))&\", \"&INDEX(Cntry,RANDBETWEEN(1,35))&\", \"&INDEX(Cntry,RANDBETWEEN(1,35))&\", \"&INDEX(Cntry,RANDBETWEEN(1,35))&\", \"&INDEX(Cntry,RANDBETWEEN(1,35))","v":"HUN, GRE, ISL, EGY, JPN"},{"$f":"INDEX(LstNm,RANDBETWEEN(1,ROWS(LstNm)))","v":"Lee"},{"$f":"INDEX(UpK,RANDBETWEEN(1,16))&INDEX(vowel,RANDBETWEEN(1,5))&INDEX(LoK,RANDBETWEEN(1,14))","v":"Wiv"},{"$f":"INDEX(UpK,RANDBETWEEN(1,16))&INDEX(UpK,RANDBETWEEN(1,16))","v":"JT"},80]
[null,{"$f":"INDEX(States,RANDBETWEEN(1,50))","v":"MT"},{"$f":"INDEX(Cntry,RANDBETWEEN(1,35))&\", \"&INDEX(Cntry,RANDBETWEEN(1,35))&\", \"&INDEX(Cntry,RANDBETWEEN(1,35))&\", \"&INDEX(Cntry,RANDBETWEEN(1,35))&\", \"&INDEX(Cntry,RANDBETWEEN(1,35))","v":"GER, IRI, GER, POL, CHN"},{"$f":"INDEX(LstNm,RANDBETWEEN(1,ROWS(LstNm)))","v":"Carter"},{"$f":"INDEX(UpK,RANDBETWEEN(1,16))&INDEX(vowel,RANDBETWEEN(1,5))&INDEX(LoK,RANDBETWEEN(1,14))","v":"Huc"},{"$f":"INDEX(UpK,RANDBETWEEN(1,16))&INDEX(UpK,RANDBETWEEN(1,16))","v":"BM"},35]
[null,{"$f":"INDEX(States,RANDBETWEEN(1,50))","v":"RI"},{"$f":"INDEX(Cntry,RANDBETWEEN(1,35))&\", \"&INDEX(Cntry,RANDBETWEEN(1,35))&\", \"&INDEX(Cntry,RANDBETWEEN(1,35))&\", \"&INDEX(Cntry,RANDBETWEEN(1,35))&\", \"&INDEX(Cntry,RANDBETWEEN(1,35))","v":"ESP, ISR, RUS, NED, HUN"},{"$f":"INDEX(LstNm,RANDBETWEEN(1,ROWS(LstNm)))","v":"Wells"},{"$f":"INDEX(UpK,RANDBETWEEN(1,16))&INDEX(vowel,RANDBETWEEN(1,5))&INDEX(LoK,RANDBETWEEN(1,14))","v":"Den"},{"$f":"INDEX(UpK,RANDBETWEEN(1,16))&INDEX(UpK,RANDBETWEEN(1,16))","v":"MP"},34]
[null,{"$f":"INDEX(States,RANDBETWEEN(1,50))","v":"KS"},{"$f":"INDEX(Cntry,RANDBETWEEN(1,35))&\", \"&INDEX(Cntry,RANDBETWEEN(1,35))&\", \"&INDEX(Cntry,RANDBETWEEN(1,35))&\", \"&INDEX(Cntry,RANDBETWEEN(1,35))&\", \"&INDEX(Cntry,RANDBETWEEN(1,35))","v":"IND, INA, MEX, HUN, POL"},{"$f":"INDEX(LstNm,RANDBETWEEN(1,ROWS(LstNm)))","v":"Price"},{"$f":"INDEX(UpK,RANDBETWEEN(1,16))&INDEX(vowel,RANDBETWEEN(1,5))&INDEX(LoK,RANDBETWEEN(1,14))","v":"Pip"},{"$f":"INDEX(UpK,RANDBETWEEN(1,16))&INDEX(UpK,RANDBETWEEN(1,16))","v":"GV"},50]
[null,{"$f":"INDEX(States,RANDBETWEEN(1,50))","v":"CO"},{"$f":"INDEX(Cntry,RANDBETWEEN(1,35))&\", \"&INDEX(Cntry,RANDBETWEEN(1,35))&\", \"&INDEX(Cntry,RANDBETWEEN(1,35))&\", \"&INDEX(Cntry,RANDBETWEEN(1,35))&\", \"&INDEX(Cntry,RANDBETWEEN(1,35))","v":"RSA, CHI, NED, IND, NOR"},{"$f":"INDEX(LstNm,RANDBETWEEN(1,ROWS(LstNm)))","v":"Wood"},{"$f":"INDEX(UpK,RANDBETWEEN(1,16))&INDEX(vowel,RANDBETWEEN(1,5))&INDEX(LoK,RANDBETWEEN(1,14))","v":"Jom"},{"$f":"INDEX(UpK,RANDBETWEEN(1,16))&INDEX(UpK,RANDBETWEEN(1,16))","v":"BR"},81]
[null,{"$f":"INDEX(States,RANDBETWEEN(1,50))","v":"IA"},{"$f":"INDEX(Cntry,RANDBETWEEN(1,35))&\", \"&INDEX(Cntry,RANDBETWEEN(1,35))&\", \"&INDEX(Cntry,RANDBETWEEN(1,35))&\", \"&INDEX(Cntry,RANDBETWEEN(1,35))&\", \"&INDEX(Cntry,RANDBETWEEN(1,35))","v":"SWE, AUS, RUS, IND, ITA"},{"$f":"INDEX(LstNm,RANDBETWEEN(1,ROWS(LstNm)))","v":"Porter"},{"$f":"INDEX(UpK,RANDBETWEEN(1,16))&INDEX(vowel,RANDBETWEEN(1,5))&INDEX(LoK,RANDBETWEEN(1,14))","v":"Nac"},{"$f":"INDEX(UpK,RANDBETWEEN(1,16))&INDEX(UpK,RANDBETWEEN(1,16))","v":"JR"},91]
[null,{"$f":"INDEX(States,RANDBETWEEN(1,50))","v":"ID"},{"$f":"INDEX(Cntry,RANDBETWEEN(1,35))&\", \"&INDEX(Cntry,RANDBETWEEN(1,35))&\", \"&INDEX(Cntry,RANDBETWEEN(1,35))&\", \"&INDEX(Cntry,RANDBETWEEN(1,35))&\", \"&INDEX(Cntry,RANDBETWEEN(1,35))","v":"BEL, IND, ISR, SUI, RSA"},{"$f":"INDEX(LstNm,RANDBETWEEN(1,ROWS(LstNm)))","v":"Rivera"},{"$f":"INDEX(UpK,RANDBETWEEN(1,16))&INDEX(vowel,RANDBETWEEN(1,5))&INDEX(LoK,RANDBETWEEN(1,14))","v":"Mum"},{"$f":"INDEX(UpK,RANDBETWEEN(1,16))&INDEX(UpK,RANDBETWEEN(1,16))","v":"GW"},91]
[null,{"$f":"INDEX(States,RANDBETWEEN(1,50))","v":"VA"},{"$f":"INDEX(Cntry,RANDBETWEEN(1,35))&\", \"&INDEX(Cntry,RANDBETWEEN(1,35))&\", \"&INDEX(Cntry,RANDBETWEEN(1,35))&\", \"&INDEX(Cntry,RANDBETWEEN(1,35))&\", \"&INDEX(Cntry,RANDBETWEEN(1,35))","v":"NED, CHI, MEX, NED, AUS"},{"$f":"INDEX(LstNm,RANDBETWEEN(1,ROWS(LstNm)))","v":"Edwards"},{"$f":"INDEX(UpK,RANDBETWEEN(1,16))&INDEX(vowel,RANDBETWEEN(1,5))&INDEX(LoK,RANDBETWEEN(1,14))","v":"Fik"},{"$f":"INDEX(UpK,RANDBETWEEN(1,16))&INDEX(UpK,RANDBETWEEN(1,16))","v":"TK"},93]
[null,{"$f":"INDEX(States,RANDBETWEEN(1,50))","v":"NH"},{"$f":"INDEX(Cntry,RANDBETWEEN(1,35))&\", \"&INDEX(Cntry,RANDBETWEEN(1,35))&\", \"&INDEX(Cntry,RANDBETWEEN(1,35))&\", \"&INDEX(Cntry,RANDBETWEEN(1,35))&\", \"&INDEX(Cntry,RANDBETWEEN(1,35))","v":"AUS, ISL, ISL, ISL, FRA"},{"$f":"INDEX(LstNm,RANDBETWEEN(1,ROWS(LstNm)))","v":"Coleman"},{"$f":"INDEX(UpK,RANDBETWEEN(1,16))&INDEX(vowel,RANDBETWEEN(1,5))&INDEX(LoK,RANDBETWEEN(1,14))","v":"Gib"},{"$f":"INDEX(UpK,RANDBETWEEN(1,16))&INDEX(UpK,RANDBETWEEN(1,16))","v":"BW"},97]
[null,{"$f":"INDEX(States,RANDBETWEEN(1,50))","v":"AR"},{"$f":"INDEX(Cntry,RANDBETWEEN(1,35))&\", \"&INDEX(Cntry,RANDBETWEEN(1,35))&\", \"&INDEX(Cntry,RANDBETWEEN(1,35))&\", \"&INDEX(Cntry,RANDBETWEEN(1,35))&\", \"&INDEX(Cntry,RANDBETWEEN(1,35))","v":"HUN, GRE, HUN, RUS, AUT"},{"$f":"INDEX(LstNm,RANDBETWEEN(1,ROWS(LstNm)))","v":"Boyd"},{"$f":"INDEX(UpK,RANDBETWEEN(1,16))&INDEX(vowel,RANDBETWEEN(1,5))&INDEX(LoK,RANDBETWEEN(1,14))","v":"Jef"},{"$f":"INDEX(UpK,RANDBETWEEN(1,16))&INDEX(UpK,RANDBETWEEN(1,16))","v":"WV"},53]
[null,{"$f":"INDEX(States,RANDBETWEEN(1,50))","v":"MO"},{"$f":"INDEX(Cntry,RANDBETWEEN(1,35))&\", \"&INDEX(Cntry,RANDBETWEEN(1,35))&\", \"&INDEX(Cntry,RANDBETWEEN(1,35))&\", \"&INDEX(Cntry,RANDBETWEEN(1,35))&\", \"&INDEX(Cntry,RANDBETWEEN(1,35))","v":"IRI, ISL, POL, NED, ARG"},{"$f":"INDEX(LstNm,RANDBETWEEN(1,ROWS(LstNm)))","v":"Freeman"},{"$f":"INDEX(UpK,RANDBETWEEN(1,16))&INDEX(vowel,RANDBETWEEN(1,5))&INDEX(LoK,RANDBETWEEN(1,14))","v":"Lof"},{"$f":"INDEX(UpK,RANDBETWEEN(1,16))&INDEX(UpK,RANDBETWEEN(1,16))","v":"MK"},98]
[null,{"$f":"INDEX(States,RANDBETWEEN(1,50))","v":"ME"},{"$f":"INDEX(Cntry,RANDBETWEEN(1,35))&\", \"&INDEX(Cntry,RANDBETWEEN(1,35))&\", \"&INDEX(Cntry,RANDBETWEEN(1,35))&\", \"&INDEX(Cntry,RANDBETWEEN(1,35))&\", \"&INDEX(Cntry,RANDBETWEEN(1,35))","v":"ITA, BEL, GRE, ARG, RUS"},{"$f":"INDEX(LstNm,RANDBETWEEN(1,ROWS(LstNm)))","v":"Butler"},{"$f":"INDEX(UpK,RANDBETWEEN(1,16))&INDEX(vowel,RANDBETWEEN(1,5))&INDEX(LoK,RANDBETWEEN(1,14))","v":"Vev"},{"$f":"INDEX(UpK,RANDBETWEEN(1,16))&INDEX(UpK,RANDBETWEEN(1,16))","v":"GF"},30]
[null,{"$f":"INDEX(States,RANDBETWEEN(1,50))","v":"AK"},{"$f":"INDEX(Cntry,RANDBETWEEN(1,35))&\", \"&INDEX(Cntry,RANDBETWEEN(1,35))&\", \"&INDEX(Cntry,RANDBETWEEN(1,35))&\", \"&INDEX(Cntry,RANDBETWEEN(1,35))&\", \"&INDEX(Cntry,RANDBETWEEN(1,35))","v":"SUI, ISR, ESP, ARG, HUN"},{"$f":"INDEX(LstNm,RANDBETWEEN(1,ROWS(LstNm)))","v":"Richardson"},{"$f":"INDEX(UpK,RANDBETWEEN(1,16))&INDEX(vowel,RANDBETWEEN(1,5))&INDEX(LoK,RANDBETWEEN(1,14))","v":"Jib"},{"$f":"INDEX(UpK,RANDBETWEEN(1,16))&INDEX(UpK,RANDBETWEEN(1,16))","v":"NR"},98]
[null,{"$f":"INDEX(States,RANDBETWEEN(1,50))","v":"NV"},{"$f":"INDEX(Cntry,RANDBETWEEN(1,35))&\", \"&INDEX(Cntry,RANDBETWEEN(1,35))&\", \"&INDEX(Cntry,RANDBETWEEN(1,35))&\", \"&INDEX(Cntry,RANDBETWEEN(1,35))&\", \"&INDEX(Cntry,RANDBETWEEN(1,35))","v":"FIN, GRE, IND, GBR, NED"},{"$f":"INDEX(LstNm,RANDBETWEEN(1,ROWS(LstNm)))","v":"Hernandez"},{"$f":"INDEX(UpK,RANDBETWEEN(1,16))&INDEX(vowel,RANDBETWEEN(1,5))&INDEX(LoK,RANDBETWEEN(1,14))","v":"Lod"},{"$f":"INDEX(UpK,RANDBETWEEN(1,16))&INDEX(UpK,RANDBETWEEN(1,16))","v":"KK"},26]
[null,{"$f":"INDEX(States,RANDBETWEEN(1,50))","v":"OR"},{"$f":"INDEX(Cntry,RANDBETWEEN(1,35))&\", \"&INDEX(Cntry,RANDBETWEEN(1,35))&\", \"&INDEX(Cntry,RANDBETWEEN(1,35))&\", \"&INDEX(Cntry,RANDBETWEEN(1,35))&\", \"&INDEX(Cntry,RANDBETWEEN(1,35))","v":"INA, POL, HUN, ARG, MEX"},{"$f":"INDEX(LstNm,RANDBETWEEN(1,ROWS(LstNm)))","v":"Morales"},{"$f":"INDEX(UpK,RANDBETWEEN(1,16))&INDEX(vowel,RANDBETWEEN(1,5))&INDEX(LoK,RANDBETWEEN(1,14))","v":"Dok"},{"$f":"INDEX(UpK,RANDBETWEEN(1,16))&INDEX(UpK,RANDBETWEEN(1,16))","v":"TM"},24]
[null,{"$f":"INDEX(States,RANDBETWEEN(1,50))","v":"KY"},{"$f":"INDEX(Cntry,RANDBETWEEN(1,35))&\", \"&INDEX(Cntry,RANDBETWEEN(1,35))&\", \"&INDEX(Cntry,RANDBETWEEN(1,35))&\", \"&INDEX(Cntry,RANDBETWEEN(1,35))&\", \"&INDEX(Cntry,RANDBETWEEN(1,35))","v":"ISL, CHI, RSA, AUT, HUN"},{"$f":"INDEX(LstNm,RANDBETWEEN(1,ROWS(LstNm)))","v":"Cole"},{"$f":"INDEX(UpK,RANDBETWEEN(1,16))&INDEX(vowel,RANDBETWEEN(1,5))&INDEX(LoK,RANDBETWEEN(1,14))","v":"Fin"},{"$f":"INDEX(UpK,RANDBETWEEN(1,16))&INDEX(UpK,RANDBETWEEN(1,16))","v":"NF"},10]
[null,{"$f":"INDEX(States,RANDBETWEEN(1,50))","v":"KY"},{"$f":"INDEX(Cntry,RANDBETWEEN(1,35))&\", \"&INDEX(Cntry,RANDBETWEEN(1,35))&\", \"&INDEX(Cntry,RANDBETWEEN(1,35))&\", \"&INDEX(Cntry,RANDBETWEEN(1,35))&\", \"&INDEX(Cntry,RANDBETWEEN(1,35))","v":"ITA, CHI, IRI, ITA, BEL"},{"$f":"INDEX(LstNm,RANDBETWEEN(1,ROWS(LstNm)))","v":"Myers"},{"$f":"INDEX(UpK,RANDBETWEEN(1,16))&INDEX(vowel,RANDBETWEEN(1,5))&INDEX(LoK,RANDBETWEEN(1,14))","v":"Rar"},{"$f":"INDEX(UpK,RANDBETWEEN(1,16))&INDEX(UpK,RANDBETWEEN(1,16))","v":"KT"},91]
[null,{"$f":"INDEX(States,RANDBETWEEN(1,50))","v":"OH"},{"$f":"INDEX(Cntry,RANDBETWEEN(1,35))&\", \"&INDEX(Cntry,RANDBETWEEN(1,35))&\", \"&INDEX(Cntry,RANDBETWEEN(1,35))&\", \"&INDEX(Cntry,RANDBETWEEN(1,35))&\", \"&INDEX(Cntry,RANDBETWEEN(1,35))","v":"NED, MEX, IRI, HUN, SWE"},{"$f":"INDEX(LstNm,RANDBETWEEN(1,ROWS(LstNm)))","v":"Kelly"},{"$f":"INDEX(UpK,RANDBETWEEN(1,16))&INDEX(vowel,RANDBETWEEN(1,5))&INDEX(LoK,RANDBETWEEN(1,14))","v":"Wom"},{"$f":"INDEX(UpK,RANDBETWEEN(1,16))&INDEX(UpK,RANDBETWEEN(1,16))","v":"KW"},63]
[null,{"$f":"INDEX(States,RANDBETWEEN(1,50))","v":"UT"},{"$f":"INDEX(Cntry,RANDBETWEEN(1,35))&\", \"&INDEX(Cntry,RANDBETWEEN(1,35))&\", \"&INDEX(Cntry,RANDBETWEEN(1,35))&\", \"&INDEX(Cntry,RANDBETWEEN(1,35))&\", \"&INDEX(Cntry,RANDBETWEEN(1,35))","v":"IRL, GBR, CHI, BEL, MEX"},{"$f":"INDEX(LstNm,RANDBETWEEN(1,ROWS(LstNm)))","v":"Hamilton"},{"$f":"INDEX(UpK,RANDBETWEEN(1,16))&INDEX(vowel,RANDBETWEEN(1,5))&INDEX(LoK,RANDBETWEEN(1,14))","v":"Heg"},{"$f":"INDEX(UpK,RANDBETWEEN(1,16))&INDEX(UpK,RANDBETWEEN(1,16))","v":"DP"},74]
[null,{"$f":"INDEX(States,RANDBETWEEN(1,50))","v":"NE"},{"$f":"INDEX(Cntry,RANDBETWEEN(1,35))&\", \"&INDEX(Cntry,RANDBETWEEN(1,35))&\", \"&INDEX(Cntry,RANDBETWEEN(1,35))&\", \"&INDEX(Cntry,RANDBETWEEN(1,35))&\", \"&INDEX(Cntry,RANDBETWEEN(1,35))","v":"CAN, ISL, ISL, ISL, FIN"},{"$f":"INDEX(LstNm,RANDBETWEEN(1,ROWS(LstNm)))","v":"Fisher"},{"$f":"INDEX(UpK,RANDBETWEEN(1,16))&INDEX(vowel,RANDBETWEEN(1,5))&INDEX(LoK,RANDBETWEEN(1,14))","v":"Tef"},{"$f":"INDEX(UpK,RANDBETWEEN(1,16))&INDEX(UpK,RANDBETWEEN(1,16))","v":"BL"},69]
[null,{"$f":"INDEX(States,RANDBETWEEN(1,50))","v":"KY"},{"$f":"INDEX(Cntry,RANDBETWEEN(1,35))&\", \"&INDEX(Cntry,RANDBETWEEN(1,35))&\", \"&INDEX(Cntry,RANDBETWEEN(1,35))&\", \"&INDEX(Cntry,RANDBETWEEN(1,35))&\", \"&INDEX(Cntry,RANDBETWEEN(1,35))","v":"CZE, JPN, FIN, CHI, ISL"},{"$f":"INDEX(LstNm,RANDBETWEEN(1,ROWS(LstNm)))","v":"Fisher"},{"$f":"INDEX(UpK,RANDBETWEEN(1,16))&INDEX(vowel,RANDBETWEEN(1,5))&INDEX(LoK,RANDBETWEEN(1,14))","v":"Lan"},{"$f":"INDEX(UpK,RANDBETWEEN(1,16))&INDEX(UpK,RANDBETWEEN(1,16))","v":"TR"},63]
[null,{"$f":"INDEX(States,RANDBETWEEN(1,50))","v":"VT"},{"$f":"INDEX(Cntry,RANDBETWEEN(1,35))&\", \"&INDEX(Cntry,RANDBETWEEN(1,35))&\", \"&INDEX(Cntry,RANDBETWEEN(1,35))&\", \"&INDEX(Cntry,RANDBETWEEN(1,35))&\", \"&INDEX(Cntry,RANDBETWEEN(1,35))","v":"ESP, IRI, RSA, CHI, INA"},{"$f":"INDEX(LstNm,RANDBETWEEN(1,ROWS(LstNm)))","v":"Campbell"},{"$f":"INDEX(UpK,RANDBETWEEN(1,16))&INDEX(vowel,RANDBETWEEN(1,5))&INDEX(LoK,RANDBETWEEN(1,14))","v":"Vag"},{"$f":"INDEX(UpK,RANDBETWEEN(1,16))&INDEX(UpK,RANDBETWEEN(1,16))","v":"TP"},83]
[null,{"$f":"INDEX(States,RANDBETWEEN(1,50))","v":"MS"},{"$f":"INDEX(Cntry,RANDBETWEEN(1,35))&\", \"&INDEX(Cntry,RANDBETWEEN(1,35))&\", \"&INDEX(Cntry,RANDBETWEEN(1,35))&\", \"&INDEX(Cntry,RANDBETWEEN(1,35))&\", \"&INDEX(Cntry,RANDBETWEEN(1,35))","v":"RUS, IRL, BEL, CAN, INA"},{"$f":"INDEX(LstNm,RANDBETWEEN(1,ROWS(LstNm)))","v":"Reynolds"},{"$f":"INDEX(UpK,RANDBETWEEN(1,16))&INDEX(vowel,RANDBETWEEN(1,5))&INDEX(LoK,RANDBETWEEN(1,14))","v":"Ges"},{"$f":"INDEX(UpK,RANDBETWEEN(1,16))&INDEX(UpK,RANDBETWEEN(1,16))","v":"ST"},13]
[null,{"$f":"INDEX(States,RANDBETWEEN(1,50))","v":"MA"},{"$f":"INDEX(Cntry,RANDBETWEEN(1,35))&\", \"&INDEX(Cntry,RANDBETWEEN(1,35))&\", \"&INDEX(Cntry,RANDBETWEEN(1,35))&\", \"&INDEX(Cntry,RANDBETWEEN(1,35))&\", \"&INDEX(Cntry,RANDBETWEEN(1,35))","v":"ISR, BRA, DEN, INA, ISL"},{"$f":"INDEX(LstNm,RANDBETWEEN(1,ROWS(LstNm)))","v":"Butler"},{"$f":"INDEX(UpK,RANDBETWEEN(1,16))&INDEX(vowel,RANDBETWEEN(1,5))&INDEX(LoK,RANDBETWEEN(1,14))","v":"Dok"},{"$f":"INDEX(UpK,RANDBETWEEN(1,16))&INDEX(UpK,RANDBETWEEN(1,16))","v":"NL"},93]
[null,{"$f":"INDEX(States,RANDBETWEEN(1,50))","v":"CO"},{"$f":"INDEX(Cntry,RANDBETWEEN(1,35))&\", \"&INDEX(Cntry,RANDBETWEEN(1,35))&\", \"&INDEX(Cntry,RANDBETWEEN(1,35))&\", \"&INDEX(Cntry,RANDBETWEEN(1,35))&\", \"&INDEX(Cntry,RANDBETWEEN(1,35))","v":"FRA, BEL, GBR, NED, JPN"},{"$f":"INDEX(LstNm,RANDBETWEEN(1,ROWS(LstNm)))","v":"Moore"},{"$f":"INDEX(UpK,RANDBETWEEN(1,16))&INDEX(vowel,RANDBETWEEN(1,5))&INDEX(LoK,RANDBETWEEN(1,14))","v":"Tip"},{"$f":"INDEX(UpK,RANDBETWEEN(1,16))&INDEX(UpK,RANDBETWEEN(1,16))","v":"HS"},80]
[null,{"$f":"INDEX(States,RANDBETWEEN(1,50))","v":"VT"},{"$f":"INDEX(Cntry,RANDBETWEEN(1,35))&\", \"&INDEX(Cntry,RANDBETWEEN(1,35))&\", \"&INDEX(Cntry,RANDBETWEEN(1,35))&\", \"&INDEX(Cntry,RANDBETWEEN(1,35))&\", \"&INDEX(Cntry,RANDBETWEEN(1,35))","v":"ISR, SWE, FRA, RSA, AUS"},{"$f":"INDEX(LstNm,RANDBETWEEN(1,ROWS(LstNm)))","v":"Ellis"},{"$f":"INDEX(UpK,RANDBETWEEN(1,16))&INDEX(vowel,RANDBETWEEN(1,5))&INDEX(LoK,RANDBETWEEN(1,14))","v":"Tes"},{"$f":"INDEX(UpK,RANDBETWEEN(1,16))&INDEX(UpK,RANDBETWEEN(1,16))","v":"RF"},48]
[null,{"$f":"INDEX(States,RANDBETWEEN(1,50))","v":"DE"},{"$f":"INDEX(Cntry,RANDBETWEEN(1,35))&\", \"&INDEX(Cntry,RANDBETWEEN(1,35))&\", \"&INDEX(Cntry,RANDBETWEEN(1,35))&\", \"&INDEX(Cntry,RANDBETWEEN(1,35))&\", \"&INDEX(Cntry,RANDBETWEEN(1,35))","v":"IND, ESP, NOR, RUS, POL"},{"$f":"INDEX(LstNm,RANDBETWEEN(1,ROWS(LstNm)))","v":"Baker"},{"$f":"INDEX(UpK,RANDBETWEEN(1,16))&INDEX(vowel,RANDBETWEEN(1,5))&INDEX(LoK,RANDBETWEEN(1,14))","v":"Tef"},{"$f":"INDEX(UpK,RANDBETWEEN(1,16))&INDEX(UpK,RANDBETWEEN(1,16))","v":"WM"},64]
[null,{"$f":"INDEX(States,RANDBETWEEN(1,50))","v":"KY"},{"$f":"INDEX(Cntry,RANDBETWEEN(1,35))&\", \"&INDEX(Cntry,RANDBETWEEN(1,35))&\", \"&INDEX(Cntry,RANDBETWEEN(1,35))&\", \"&INDEX(Cntry,RANDBETWEEN(1,35))&\", \"&INDEX(Cntry,RANDBETWEEN(1,35))","v":"CHI, HUN, RSA, CHN, CZE"},{"$f":"INDEX(LstNm,RANDBETWEEN(1,ROWS(LstNm)))","v":"Jordan"},{"$f":"INDEX(UpK,RANDBETWEEN(1,16))&INDEX(vowel,RANDBETWEEN(1,5))&INDEX(LoK,RANDBETWEEN(1,14))","v":"Biv"},{"$f":"INDEX(UpK,RANDBETWEEN(1,16))&INDEX(UpK,RANDBETWEEN(1,16))","v":"LV"},51]
[null,{"$f":"INDEX(States,RANDBETWEEN(1,50))","v":"IL"},{"$f":"INDEX(Cntry,RANDBETWEEN(1,35))&\", \"&INDEX(Cntry,RANDBETWEEN(1,35))&\", \"&INDEX(Cntry,RANDBETWEEN(1,35))&\", \"&INDEX(Cntry,RANDBETWEEN(1,35))&\", \"&INDEX(Cntry,RANDBETWEEN(1,35))","v":"NOR, CAN, RUS, IRL, SUI"},{"$f":"INDEX(LstNm,RANDBETWEEN(1,ROWS(LstNm)))","v":"Perry"},{"$f":"INDEX(UpK,RANDBETWEEN(1,16))&INDEX(vowel,RANDBETWEEN(1,5))&INDEX(LoK,RANDBETWEEN(1,14))","v":"Fac"},{"$f":"INDEX(UpK,RANDBETWEEN(1,16))&INDEX(UpK,RANDBETWEEN(1,16))","v":"HJ"},57]
[null,{"$f":"INDEX(States,RANDBETWEEN(1,50))","v":"MS"},{"$f":"INDEX(Cntry,RANDBETWEEN(1,35))&\", \"&INDEX(Cntry,RANDBETWEEN(1,35))&\", \"&INDEX(Cntry,RANDBETWEEN(1,35))&\", \"&INDEX(Cntry,RANDBETWEEN(1,35))&\", \"&INDEX(Cntry,RANDBETWEEN(1,35))","v":"GBR, BRA, FRA, FIN, MEX"},{"$f":"INDEX(LstNm,RANDBETWEEN(1,ROWS(LstNm)))","v":"Ortiz"},{"$f":"INDEX(UpK,RANDBETWEEN(1,16))&INDEX(vowel,RANDBETWEEN(1,5))&INDEX(LoK,RANDBETWEEN(1,14))","v":"Vim"},{"$f":"INDEX(UpK,RANDBETWEEN(1,16))&INDEX(UpK,RANDBETWEEN(1,16))","v":"JK"},72]
[null,{"$f":"INDEX(States,RANDBETWEEN(1,50))","v":"MA"},{"$f":"INDEX(Cntry,RANDBETWEEN(1,35))&\", \"&INDEX(Cntry,RANDBETWEEN(1,35))&\", \"&INDEX(Cntry,RANDBETWEEN(1,35))&\", \"&INDEX(Cntry,RANDBETWEEN(1,35))&\", \"&INDEX(Cntry,RANDBETWEEN(1,35))","v":"AUT, CAN, POR, ITA, FIN"},{"$f":"INDEX(LstNm,RANDBETWEEN(1,ROWS(LstNm)))","v":"Turner"},{"$f":"INDEX(UpK,RANDBETWEEN(1,16))&INDEX(vowel,RANDBETWEEN(1,5))&INDEX(LoK,RANDBETWEEN(1,14))","v":"Gun"},{"$f":"INDEX(UpK,RANDBETWEEN(1,16))&INDEX(UpK,RANDBETWEEN(1,16))","v":"WR"},37]
[null,{"$f":"INDEX(States,RANDBETWEEN(1,50))","v":"HI"},{"$f":"INDEX(Cntry,RANDBETWEEN(1,35))&\", \"&INDEX(Cntry,RANDBETWEEN(1,35))&\", \"&INDEX(Cntry,RANDBETWEEN(1,35))&\", \"&INDEX(Cntry,RANDBETWEEN(1,35))&\", \"&INDEX(Cntry,RANDBETWEEN(1,35))","v":"ITA, SUI, SUI, AUS, IRI"},{"$f":"INDEX(LstNm,RANDBETWEEN(1,ROWS(LstNm)))","v":"Bennett"},{"$f":"INDEX(UpK,RANDBETWEEN(1,16))&INDEX(vowel,RANDBETWEEN(1,5))&INDEX(LoK,RANDBETWEEN(1,14))","v":"Sah"},{"$f":"INDEX(UpK,RANDBETWEEN(1,16))&INDEX(UpK,RANDBETWEEN(1,16))","v":"HV"},19]
[null,{"$f":"INDEX(States,RANDBETWEEN(1,50))","v":"WA"},{"$f":"INDEX(Cntry,RANDBETWEEN(1,35))&\", \"&INDEX(Cntry,RANDBETWEEN(1,35))&\", \"&INDEX(Cntry,RANDBETWEEN(1,35))&\", \"&INDEX(Cntry,RANDBETWEEN(1,35))&\", \"&INDEX(Cntry,RANDBETWEEN(1,35))","v":"GBR, ITA, SWE, GBR, IRL"},{"$f":"INDEX(LstNm,RANDBETWEEN(1,ROWS(LstNm)))","v":"Scott"},{"$f":"INDEX(UpK,RANDBETWEEN(1,16))&INDEX(vowel,RANDBETWEEN(1,5))&INDEX(LoK,RANDBETWEEN(1,14))","v":"Fop"},{"$f":"INDEX(UpK,RANDBETWEEN(1,16))&INDEX(UpK,RANDBETWEEN(1,16))","v":"JH"},63]
[null,{"$f":"INDEX(States,RANDBETWEEN(1,50))","v":"HI"},{"$f":"INDEX(Cntry,RANDBETWEEN(1,35))&\", \"&INDEX(Cntry,RANDBETWEEN(1,35))&\", \"&INDEX(Cntry,RANDBETWEEN(1,35))&\", \"&INDEX(Cntry,RANDBETWEEN(1,35))&\", \"&INDEX(Cntry,RANDBETWEEN(1,35))","v":"FRA, ISR, NOR, GRE, ISL"},{"$f":"INDEX(LstNm,RANDBETWEEN(1,ROWS(LstNm)))","v":"Bailey"},{"$f":"INDEX(UpK,RANDBETWEEN(1,16))&INDEX(vowel,RANDBETWEEN(1,5))&INDEX(LoK,RANDBETWEEN(1,14))","v":"Bik"},{"$f":"INDEX(UpK,RANDBETWEEN(1,16))&INDEX(UpK,RANDBETWEEN(1,16))","v":"BT"},33]
[null,{"$f":"INDEX(States,RANDBETWEEN(1,50))","v":"VA"},{"$f":"INDEX(Cntry,RANDBETWEEN(1,35))&\", \"&INDEX(Cntry,RANDBETWEEN(1,35))&\", \"&INDEX(Cntry,RANDBETWEEN(1,35))&\", \"&INDEX(Cntry,RANDBETWEEN(1,35))&\", \"&INDEX(Cntry,RANDBETWEEN(1,35))","v":"POL, CAN, AUS, ISR, DEN"},{"$f":"INDEX(LstNm,RANDBETWEEN(1,ROWS(LstNm)))","v":"Jones"},{"$f":"INDEX(UpK,RANDBETWEEN(1,16))&INDEX(vowel,RANDBETWEEN(1,5))&INDEX(LoK,RANDBETWEEN(1,14))","v":"Jum"},{"$f":"INDEX(UpK,RANDBETWEEN(1,16))&INDEX(UpK,RANDBETWEEN(1,16))","v":"DJ"},85]
[null,{"$f":"INDEX(States,RANDBETWEEN(1,50))","v":"AK"},{"$f":"INDEX(Cntry,RANDBETWEEN(1,35))&\", \"&INDEX(Cntry,RANDBETWEEN(1,35))&\", \"&INDEX(Cntry,RANDBETWEEN(1,35))&\", \"&INDEX(Cntry,RANDBETWEEN(1,35))&\", \"&INDEX(Cntry,RANDBETWEEN(1,35))","v":"GER, IND, HUN, GBR, MEX"},{"$f":"INDEX(LstNm,RANDBETWEEN(1,ROWS(LstNm)))","v":"Stewart"},{"$f":"INDEX(UpK,RANDBETWEEN(1,16))&INDEX(vowel,RANDBETWEEN(1,5))&INDEX(LoK,RANDBETWEEN(1,14))","v":"Viv"},{"$f":"INDEX(UpK,RANDBETWEEN(1,16))&INDEX(UpK,RANDBETWEEN(1,16))","v":"WN"},10]
[null,{"$f":"INDEX(States,RANDBETWEEN(1,50))","v":"NM"},{"$f":"INDEX(Cntry,RANDBETWEEN(1,35))&\", \"&INDEX(Cntry,RANDBETWEEN(1,35))&\", \"&INDEX(Cntry,RANDBETWEEN(1,35))&\", \"&INDEX(Cntry,RANDBETWEEN(1,35))&\", \"&INDEX(Cntry,RANDBETWEEN(1,35))","v":"FIN, SUI, CAN, IRI, IND"},{"$f":"INDEX(LstNm,RANDBETWEEN(1,ROWS(LstNm)))","v":"Bennett"},{"$f":"INDEX(UpK,RANDBETWEEN(1,16))&INDEX(vowel,RANDBETWEEN(1,5))&INDEX(LoK,RANDBETWEEN(1,14))","v":"Gap"},{"$f":"INDEX(UpK,RANDBETWEEN(1,16))&INDEX(UpK,RANDBETWEEN(1,16))","v":"DR"},79]
[null,{"$f":"INDEX(States,RANDBETWEEN(1,50))","v":"TN"},{"$f":"INDEX(Cntry,RANDBETWEEN(1,35))&\", \"&INDEX(Cntry,RANDBETWEEN(1,35))&\", \"&INDEX(Cntry,RANDBETWEEN(1,35))&\", \"&INDEX(Cntry,RANDBETWEEN(1,35))&\", \"&INDEX(Cntry,RANDBETWEEN(1,35))","v":"IRL, IRL, POR, AUS, AUS"},{"$f":"INDEX(LstNm,RANDBETWEEN(1,ROWS(LstNm)))","v":"Edwards"},{"$f":"INDEX(UpK,RANDBETWEEN(1,16))&INDEX(vowel,RANDBETWEEN(1,5))&INDEX(LoK,RANDBETWEEN(1,14))","v":"Pes"},{"$f":"INDEX(UpK,RANDBETWEEN(1,16))&INDEX(UpK,RANDBETWEEN(1,16))","v":"PL"},90]
[null,{"$f":"INDEX(States,RANDBETWEEN(1,50))","v":"IL"},{"$f":"INDEX(Cntry,RANDBETWEEN(1,35))&\", \"&INDEX(Cntry,RANDBETWEEN(1,35))&\", \"&INDEX(Cntry,RANDBETWEEN(1,35))&\", \"&INDEX(Cntry,RANDBETWEEN(1,35))&\", \"&INDEX(Cntry,RANDBETWEEN(1,35))","v":"FRA, CAN, ISR, POR, IRL"},{"$f":"INDEX(LstNm,RANDBETWEEN(1,ROWS(LstNm)))","v":"Patterson"},{"$f":"INDEX(UpK,RANDBETWEEN(1,16))&INDEX(vowel,RANDBETWEEN(1,5))&INDEX(LoK,RANDBETWEEN(1,14))","v":"Get"},{"$f":"INDEX(UpK,RANDBETWEEN(1,16))&INDEX(UpK,RANDBETWEEN(1,16))","v":"FG"},70]
[null,{"$f":"INDEX(States,RANDBETWEEN(1,50))","v":"KY"},{"$f":"INDEX(Cntry,RANDBETWEEN(1,35))&\", \"&INDEX(Cntry,RANDBETWEEN(1,35))&\", \"&INDEX(Cntry,RANDBETWEEN(1,35))&\", \"&INDEX(Cntry,RANDBETWEEN(1,35))&\", \"&INDEX(Cntry,RANDBETWEEN(1,35))","v":"NOR, NOR, CHN, IRI, RUS"},{"$f":"INDEX(LstNm,RANDBETWEEN(1,ROWS(LstNm)))","v":"Bailey"},{"$f":"INDEX(UpK,RANDBETWEEN(1,16))&INDEX(vowel,RANDBETWEEN(1,5))&INDEX(LoK,RANDBETWEEN(1,14))","v":"Rah"},{"$f":"INDEX(UpK,RANDBETWEEN(1,16))&INDEX(UpK,RANDBETWEEN(1,16))","v":"BG"},84]
[null,{"$f":"INDEX(States,RANDBETWEEN(1,50))","v":"CT"},{"$f":"INDEX(Cntry,RANDBETWEEN(1,35))&\", \"&INDEX(Cntry,RANDBETWEEN(1,35))&\", \"&INDEX(Cntry,RANDBETWEEN(1,35))&\", \"&INDEX(Cntry,RANDBETWEEN(1,35))&\", \"&INDEX(Cntry,RANDBETWEEN(1,35))","v":"ESP, FIN, IND, BEL, ARG"},{"$f":"INDEX(LstNm,RANDBETWEEN(1,ROWS(LstNm)))","v":"Garcia"},{"$f":"INDEX(UpK,RANDBETWEEN(1,16))&INDEX(vowel,RANDBETWEEN(1,5))&INDEX(LoK,RANDBETWEEN(1,14))","v":"Lis"},{"$f":"INDEX(UpK,RANDBETWEEN(1,16))&INDEX(UpK,RANDBETWEEN(1,16))","v":"RK"},52]
[null,{"$f":"INDEX(States,RANDBETWEEN(1,50))","v":"TN"},{"$f":"INDEX(Cntry,RANDBETWEEN(1,35))&\", \"&INDEX(Cntry,RANDBETWEEN(1,35))&\", \"&INDEX(Cntry,RANDBETWEEN(1,35))&\", \"&INDEX(Cntry,RANDBETWEEN(1,35))&\", \"&INDEX(Cntry,RANDBETWEEN(1,35))","v":"DEN, JPN, IRI, ISR, CHI"},{"$f":"INDEX(LstNm,RANDBETWEEN(1,ROWS(LstNm)))","v":"Bennett"},{"$f":"INDEX(UpK,RANDBETWEEN(1,16))&INDEX(vowel,RANDBETWEEN(1,5))&INDEX(LoK,RANDBETWEEN(1,14))","v":"Vot"},{"$f":"INDEX(UpK,RANDBETWEEN(1,16))&INDEX(UpK,RANDBETWEEN(1,16))","v":"GV"},40]
[null,{"$f":"INDEX(States,RANDBETWEEN(1,50))","v":"AL"},{"$f":"INDEX(Cntry,RANDBETWEEN(1,35))&\", \"&INDEX(Cntry,RANDBETWEEN(1,35))&\", \"&INDEX(Cntry,RANDBETWEEN(1,35))&\", \"&INDEX(Cntry,RANDBETWEEN(1,35))&\", \"&INDEX(Cntry,RANDBETWEEN(1,35))","v":"POR, POR, SUI, EGY, ISL"},{"$f":"INDEX(LstNm,RANDBETWEEN(1,ROWS(LstNm)))","v":"Roberts"},{"$f":"INDEX(UpK,RANDBETWEEN(1,16))&INDEX(vowel,RANDBETWEEN(1,5))&INDEX(LoK,RANDBETWEEN(1,14))","v":"Sum"},{"$f":"INDEX(UpK,RANDBETWEEN(1,16))&INDEX(UpK,RANDBETWEEN(1,16))","v":"HD"},18]
[null,{"$f":"INDEX(States,RANDBETWEEN(1,50))","v":"NM"},{"$f":"INDEX(Cntry,RANDBETWEEN(1,35))&\", \"&INDEX(Cntry,RANDBETWEEN(1,35))&\", \"&INDEX(Cntry,RANDBETWEEN(1,35))&\", \"&INDEX(Cntry,RANDBETWEEN(1,35))&\", \"&INDEX(Cntry,RANDBETWEEN(1,35))","v":"NOR, ISR, RUS, AUT, RUS"},{"$f":"INDEX(LstNm,RANDBETWEEN(1,ROWS(LstNm)))","v":"Ortiz"},{"$f":"INDEX(UpK,RANDBETWEEN(1,16))&INDEX(vowel,RANDBETWEEN(1,5))&INDEX(LoK,RANDBETWEEN(1,14))","v":"Ser"},{"$f":"INDEX(UpK,RANDBETWEEN(1,16))&INDEX(UpK,RANDBETWEEN(1,16))","v":"GM"},16]
[null,{"$f":"INDEX(States,RANDBETWEEN(1,50))","v":"WI"},{"$f":"INDEX(Cntry,RANDBETWEEN(1,35))&\", \"&INDEX(Cntry,RANDBETWEEN(1,35))&\", \"&INDEX(Cntry,RANDBETWEEN(1,35))&\", \"&INDEX(Cntry,RANDBETWEEN(1,35))&\", \"&INDEX(Cntry,RANDBETWEEN(1,35))","v":"FIN, SUI, BRA, NED, INA"},{"$f":"INDEX(LstNm,RANDBETWEEN(1,ROWS(LstNm)))","v":"Boyd"},{"$f":"INDEX(UpK,RANDBETWEEN(1,16))&INDEX(vowel,RANDBETWEEN(1,5))&INDEX(LoK,RANDBETWEEN(1,14))","v":"Her"},{"$f":"INDEX(UpK,RANDBETWEEN(1,16))&INDEX(UpK,RANDBETWEEN(1,16))","v":"FP"},68]
[null,{"$f":"INDEX(States,RANDBETWEEN(1,50))","v":"IN"},{"$f":"INDEX(Cntry,RANDBETWEEN(1,35))&\", \"&INDEX(Cntry,RANDBETWEEN(1,35))&\", \"&INDEX(Cntry,RANDBETWEEN(1,35))&\", \"&INDEX(Cntry,RANDBETWEEN(1,35))&\", \"&INDEX(Cntry,RANDBETWEEN(1,35))","v":"BEL, GBR, CAN, IRI, JPN"},{"$f":"INDEX(LstNm,RANDBETWEEN(1,ROWS(LstNm)))","v":"Alexander"},{"$f":"INDEX(UpK,RANDBETWEEN(1,16))&INDEX(vowel,RANDBETWEEN(1,5))&INDEX(LoK,RANDBETWEEN(1,14))","v":"Lik"},{"$f":"INDEX(UpK,RANDBETWEEN(1,16))&INDEX(UpK,RANDBETWEEN(1,16))","v":"MD"},21]
[null,{"$f":"INDEX(States,RANDBETWEEN(1,50))","v":"VA"},{"$f":"INDEX(Cntry,RANDBETWEEN(1,35))&\", \"&INDEX(Cntry,RANDBETWEEN(1,35))&\", \"&INDEX(Cntry,RANDBETWEEN(1,35))&\", \"&INDEX(Cntry,RANDBETWEEN(1,35))&\", \"&INDEX(Cntry,RANDBETWEEN(1,35))","v":"ARG, ISR, AUS, ESP, RUS"},{"$f":"INDEX(LstNm,RANDBETWEEN(1,ROWS(LstNm)))","v":"Simpson"},{"$f":"INDEX(UpK,RANDBETWEEN(1,16))&INDEX(vowel,RANDBETWEEN(1,5))&INDEX(LoK,RANDBETWEEN(1,14))","v":"Bop"},{"$f":"INDEX(UpK,RANDBETWEEN(1,16))&INDEX(UpK,RANDBETWEEN(1,16))","v":"MJ"},15]
[null,{"$f":"INDEX(States,RANDBETWEEN(1,50))","v":"WV"},{"$f":"INDEX(Cntry,RANDBETWEEN(1,35))&\", \"&INDEX(Cntry,RANDBETWEEN(1,35))&\", \"&INDEX(Cntry,RANDBETWEEN(1,35))&\", \"&INDEX(Cntry,RANDBETWEEN(1,35))&\", \"&INDEX(Cntry,RANDBETWEEN(1,35))","v":"ESP, ESP, EGY, IRL, POR"},{"$f":"INDEX(LstNm,RANDBETWEEN(1,ROWS(LstNm)))","v":"Fisher"},{"$f":"INDEX(UpK,RANDBETWEEN(1,16))&INDEX(vowel,RANDBETWEEN(1,5))&INDEX(LoK,RANDBETWEEN(1,14))","v":"Pat"},{"$f":"INDEX(UpK,RANDBETWEEN(1,16))&INDEX(UpK,RANDBETWEEN(1,16))","v":"SL"},97]
[null,{"$f":"INDEX(States,RANDBETWEEN(1,50))","v":"ID"},{"$f":"INDEX(Cntry,RANDBETWEEN(1,35))&\", \"&INDEX(Cntry,RANDBETWEEN(1,35))&\", \"&INDEX(Cntry,RANDBETWEEN(1,35))&\", \"&INDEX(Cntry,RANDBETWEEN(1,35))&\", \"&INDEX(Cntry,RANDBETWEEN(1,35))","v":"RSA, CHI, CAN, ARG, CHI"},{"$f":"INDEX(LstNm,RANDBETWEEN(1,ROWS(LstNm)))","v":"Jones"},{"$f":"INDEX(UpK,RANDBETWEEN(1,16))&INDEX(vowel,RANDBETWEEN(1,5))&INDEX(LoK,RANDBETWEEN(1,14))","v":"Sik"},{"$f":"INDEX(UpK,RANDBETWEEN(1,16))&INDEX(UpK,RANDBETWEEN(1,16))","v":"SW"},67]
[null,{"$f":"INDEX(States,RANDBETWEEN(1,50))","v":"SD"},{"$f":"INDEX(Cntry,RANDBETWEEN(1,35))&\", \"&INDEX(Cntry,RANDBETWEEN(1,35))&\", \"&INDEX(Cntry,RANDBETWEEN(1,35))&\", \"&INDEX(Cntry,RANDBETWEEN(1,35))&\", \"&INDEX(Cntry,RANDBETWEEN(1,35))","v":"IRI, FRA, CHN, FIN, IRI"},{"$f":"INDEX(LstNm,RANDBETWEEN(1,ROWS(LstNm)))","v":"Powell"},{"$f":"INDEX(UpK,RANDBETWEEN(1,16))&INDEX(vowel,RANDBETWEEN(1,5))&INDEX(LoK,RANDBETWEEN(1,14))","v":"Vuv"},{"$f":"INDEX(UpK,RANDBETWEEN(1,16))&INDEX(UpK,RANDBETWEEN(1,16))","v":"PT"},59]
[null,{"$f":"INDEX(States,RANDBETWEEN(1,50))","v":"TX"},{"$f":"INDEX(Cntry,RANDBETWEEN(1,35))&\", \"&INDEX(Cntry,RANDBETWEEN(1,35))&\", \"&INDEX(Cntry,RANDBETWEEN(1,35))&\", \"&INDEX(Cntry,RANDBETWEEN(1,35))&\", \"&INDEX(Cntry,RANDBETWEEN(1,35))","v":"JPN, AUT, CAN, JPN, NOR"},{"$f":"INDEX(LstNm,RANDBETWEEN(1,ROWS(LstNm)))","v":"Washington"},{"$f":"INDEX(UpK,RANDBETWEEN(1,16))&INDEX(vowel,RANDBETWEEN(1,5))&INDEX(LoK,RANDBETWEEN(1,14))","v":"Wub"},{"$f":"INDEX(UpK,RANDBETWEEN(1,16))&INDEX(UpK,RANDBETWEEN(1,16))","v":"FR"},57]
[null,{"$f":"INDEX(States,RANDBETWEEN(1,50))","v":"CO"},{"$f":"INDEX(Cntry,RANDBETWEEN(1,35))&\", \"&INDEX(Cntry,RANDBETWEEN(1,35))&\", \"&INDEX(Cntry,RANDBETWEEN(1,35))&\", \"&INDEX(Cntry,RANDBETWEEN(1,35))&\", \"&INDEX(Cntry,RANDBETWEEN(1,35))","v":"CZE, GER, BRA, POR, CZE"},{"$f":"INDEX(LstNm,RANDBETWEEN(1,ROWS(LstNm)))","v":"Bell"},{"$f":"INDEX(UpK,RANDBETWEEN(1,16))&INDEX(vowel,RANDBETWEEN(1,5))&INDEX(LoK,RANDBETWEEN(1,14))","v":"Pub"},{"$f":"INDEX(UpK,RANDBETWEEN(1,16))&INDEX(UpK,RANDBETWEEN(1,16))","v":"VB"},44]
[null,{"$f":"INDEX(States,RANDBETWEEN(1,50))","v":"TN"},{"$f":"INDEX(Cntry,RANDBETWEEN(1,35))&\", \"&INDEX(Cntry,RANDBETWEEN(1,35))&\", \"&INDEX(Cntry,RANDBETWEEN(1,35))&\", \"&INDEX(Cntry,RANDBETWEEN(1,35))&\", \"&INDEX(Cntry,RANDBETWEEN(1,35))","v":"NOR, BEL, CZE, CHN, RUS"},{"$f":"INDEX(LstNm,RANDBETWEEN(1,ROWS(LstNm)))","v":"Wood"},{"$f":"INDEX(UpK,RANDBETWEEN(1,16))&INDEX(vowel,RANDBETWEEN(1,5))&INDEX(LoK,RANDBETWEEN(1,14))","v":"Vat"},{"$f":"INDEX(UpK,RANDBETWEEN(1,16))&INDEX(UpK,RANDBETWEEN(1,16))","v":"SV"},34]
[null,{"$f":"INDEX(States,RANDBETWEEN(1,50))","v":"AR"},{"$f":"INDEX(Cntry,RANDBETWEEN(1,35))&\", \"&INDEX(Cntry,RANDBETWEEN(1,35))&\", \"&INDEX(Cntry,RANDBETWEEN(1,35))&\", \"&INDEX(Cntry,RANDBETWEEN(1,35))&\", \"&INDEX(Cntry,RANDBETWEEN(1,35))","v":"RSA, ESP, ARG, ISR, CAN"},{"$f":"INDEX(LstNm,RANDBETWEEN(1,ROWS(LstNm)))","v":"Hunter"},{"$f":"INDEX(UpK,RANDBETWEEN(1,16))&INDEX(vowel,RANDBETWEEN(1,5))&INDEX(LoK,RANDBETWEEN(1,14))","v":"Lab"},{"$f":"INDEX(UpK,RANDBETWEEN(1,16))&INDEX(UpK,RANDBETWEEN(1,16))","v":"HT"},22]
[null,{"$f":"INDEX(States,RANDBETWEEN(1,50))","v":"AZ"},{"$f":"INDEX(Cntry,RANDBETWEEN(1,35))&\", \"&INDEX(Cntry,RANDBETWEEN(1,35))&\", \"&INDEX(Cntry,RANDBETWEEN(1,35))&\", \"&INDEX(Cntry,RANDBETWEEN(1,35))&\", \"&INDEX(Cntry,RANDBETWEEN(1,35))","v":"CAN, GBR, RSA, AUS, MEX"},{"$f":"INDEX(LstNm,RANDBETWEEN(1,ROWS(LstNm)))","v":"Martin"},{"$f":"INDEX(UpK,RANDBETWEEN(1,16))&INDEX(vowel,RANDBETWEEN(1,5))&INDEX(LoK,RANDBETWEEN(1,14))","v":"Pub"},{"$f":"INDEX(UpK,RANDBETWEEN(1,16))&INDEX(UpK,RANDBETWEEN(1,16))","v":"MF"},{"$f":"RANDBETWEEN(10,99)","v":70}]

{"sheet":"Criteria","index":1,"n_rows":10,"n_cols":19,"rows_kept":10,"cut":false,"hidden":false,"merged":[]}
[]
[]
[null,null,"Table2"]
[null,null,"Loc","Desc1","Desc2","Desc3","Desc4","Desc5","Desc6","Desc7","Desc8","Supplier1","Supplier2","Supplier3","Supplier4","Supplier5","Supplier6","Supplier7","Supplier8"]
[null,null,"Loc","Desc","Desc","Desc","Desc","Desc","Desc","Desc","Desc","Supplier","Supplier","Supplier","Supplier","Supplier","Supplier","Supplier","Supplier"]
[null,null,"AZ",{"$f":"\"*\"&INDEX(Cntry,RANDBETWEEN(1,35))&\"*\"","v":"*GRE*"},{"$f":"\"*\"&INDEX(Cntry,RANDBETWEEN(1,35))&\"*\"","v":"*SWE*"},{"$f":"\"*\"&INDEX(Cntry,RANDBETWEEN(1,35))&\"*\"","v":"*DEN*"},{"$f":"\"*\"&INDEX(Cntry,RANDBETWEEN(1,35))&\"*\"","v":"*ESP*"},{"$f":"\"<>\"&\"*\"&INDEX(Cntry,RANDBETWEEN(1,35))&\"*\"","v":"<>*INA*"},{"$f":"\"<>\"&\"*\"&INDEX(Cntry,RANDBETWEEN(1,35))&\"*\"","v":"<>*ISL*"},{"$f":"\"<>\"&\"*\"&INDEX(Cntry,RANDBETWEEN(1,35))&\"*\"","v":"<>*EGY*"},{"$f":"\"<>\"&\"*\"&INDEX(Cntry,RANDBETWEEN(1,35))&\"*\"","v":"<>*CHN*"},{"$f":"INDEX(LstNm,RANDBETWEEN(1,ROWS(LstNm)))","v":"Torres"},{"$f":"INDEX(LstNm,RANDBETWEEN(1,ROWS(LstNm)))","v":"Woods"},{"$f":"INDEX(LstNm,RANDBETWEEN(1,ROWS(LstNm)))","v":"Brown"},{"$f":"INDEX(LstNm,RANDBETWEEN(1,ROWS(LstNm)))","v":"Rogers"},{"$f":"\"<>\"&INDEX(LstNm,RANDBETWEEN(1,ROWS(LstNm)))","v":"<>Richardson"},{"$f":"\"<>\"&INDEX(LstNm,RANDBETWEEN(1,ROWS(LstNm)))","v":"<>Parker"},{"$f":"\"<>\"&INDEX(LstNm,RANDBETWEEN(1,ROWS(LstNm)))","v":"<>Lewis"},{"$f":"\"<>\"&INDEX(LstNm,RANDBETWEEN(1,ROWS(LstNm)))","v":"<>Bell"}]
[null,null,"AZ",{"$f":"\"*\"&INDEX(Cntry,RANDBETWEEN(1,35))&\"*\"","v":"*DEN*"},{"$f":"\"*\"&INDEX(Cntry,RANDBETWEEN(1,35))&\"*\"","v":"*EGY*"},{"$f":"\"*\"&INDEX(Cntry,RANDBETWEEN(1,35))&\"*\"","v":"*CAN*"},null,{"$f":"\"<>\"&\"*\"&INDEX(Cntry,RANDBETWEEN(1,35))&\"*\"","v":"<>*FIN*"},{"$f":"\"<>\"&\"*\"&INDEX(Cntry,RANDBETWEEN(1,35))&\"*\"","v":"<>*CAN*"},{"$f":"\"<>\"&\"*\"&INDEX(Cntry,RANDBETWEEN(1,35))&\"*\"","v":"<>*CAN*"},null,{"$f":"INDEX(LstNm,RANDBETWEEN(1,ROWS(LstNm)))","v":"Gonzales"},{"$f":"INDEX(LstNm,RANDBETWEEN(1,ROWS(LstNm)))","v":"Taylor"},{"$f":"INDEX(LstNm,RANDBETWEEN(1,ROWS(LstNm)))","v":"Johnson"},null,{"$f":"\"<>\"&INDEX(LstNm,RANDBETWEEN(1,ROWS(LstNm)))","v":"<>Perez"},{"$f":"\"<>\"&INDEX(LstNm,RANDBETWEEN(1,ROWS(LstNm)))","v":"<>Perez"},{"$f":"\"<>\"&INDEX(LstNm,RANDBETWEEN(1,ROWS(LstNm)))","v":"<>Williams"}]
[null,null,"AZ",{"$f":"\"*\"&INDEX(Cntry,RANDBETWEEN(1,35))&\"*\"","v":"*NOR*"},{"$f":"\"*\"&INDEX(Cntry,RANDBETWEEN(1,35))&\"*\"","v":"*NED*"},null,null,{"$f":"\"<>\"&\"*\"&INDEX(Cntry,RANDBETWEEN(1,35))&\"*\"","v":"<>*RUS*"},{"$f":"\"<>\"&\"*\"&INDEX(Cntry,RANDBETWEEN(1,35))&\"*\"","v":"<>*ESP*"},null,null,{"$f":"INDEX(LstNm,RANDBETWEEN(1,ROWS(LstNm)))","v":"Henry"},{"$f":"INDEX(LstNm,RANDBETWEEN(1,ROWS(LstNm)))","v":"Morris"},null,null,{"$f":"\"<>\"&INDEX(LstNm,RANDBETWEEN(1,ROWS(LstNm)))","v":"<>Campbell"},{"$f":"\"<>\"&INDEX(LstNm,RANDBETWEEN(1,ROWS(LstNm)))","v":"<>Baker"}]
[null,null,"AZ",{"$f":"\"*\"&INDEX(Cntry,RANDBETWEEN(1,35))&\"*\"","v":"*SWE*"},null,null,null,{"$f":"\"<>\"&\"*\"&INDEX(Cntry,RANDBETWEEN(1,35))&\"*\"","v":"<>*NED*"},null,null,null,{"$f":"INDEX(LstNm,RANDBETWEEN(1,ROWS(LstNm)))","v":"Edwards"},null,null,null,{"$f":"\"<>\"&INDEX(LstNm,RANDBETWEEN(1,ROWS(LstNm)))","v":"<>Cooper"}]
[null,null,"AZ",null,null,null,null,{"$f":"\"<>\"&\"*\"&INDEX(Cntry,RANDBETWEEN(1,35))&\"*\"","v":"<>*ISR*"},null,null,null,null,null,null,null,{"$f":"\"<>\"&INDEX(LstNm,RANDBETWEEN(1,ROWS(LstNm)))","v":"<>Washington"}]